Cogmind - Beta 17 @@@ ROGUE MODE // 2026.08.25 @ 16:13:39 Player: SA-TR1 Result: Destroyed by H-88 Terminator with KE Penetrator Performance ------------- Evolutions (9) 4500 Regions Visited (30) 6000 Robots Destroyed (382) 1910 Value Destroyed (19589) 19589 Prototype IDs (132) 2640 Alien Tech Used (8) 1600 Bonus (9374) 9374 TOTAL SCORE: 45613 Bonus ------- High Alert Combat Kills 1123 Follower Combat Kills 3312 Registered with UFD 300 Met Optimus in HQ 500 Met Data Miner 300 Met Zhirov 300 Met Warlord at Base 500 MAIN.C Attacked Warlord 500 Warlord Defense Kills 3412 Friendly Fire -873 Cogmind --------- Core Integrity 0/1600 Matter 204/300 Energy 99/100 System Corruption 2% Temperature Cool (0) Movement Core (50) Location -1/Access Parts ------- > --- POWER (3) -------- (None) > --- PROPULSION (5) --- (None) > --- UTILITY (14) ----- Advanced Coolant Injector Spectral Analyzer Advanced Signal Interpreter Advanced Terrain Scan Processor Experimental Targeting Computer > --- WEAPON (3) ------- (None) > --- INVENTORY (5) ---- Advanced Recalibrator Enhanced Nova Cannon Potential Cannon Peak State ------------ > --- POWER ------------ Light Antimatter Reactor Hybrid Antimatter Reactor Light Quantum Reactor > --- PROPULSION ------- Myomer Leg Advanced Myomer Leg Centrium Leg Centrium Leg Centrium Leg > --- UTILITY ---------- Advanced Cryofiber Web Advanced Coolant Injector Large Storage Unit Spectral Analyzer Advanced Signal Interpreter Improved Terrain Scanner Experimental Targeting Computer Advanced Recoil Stabilizer Improved Kinecellerator Phase Armor Graphene Brace Advanced Thermal Shield A0-MCA's Component Scanner > --- WEAPON ----------- Potential Cannon Enhanced Hardcell Cannon > --- INVENTORY -------- Q-thruster Q-thruster Q-thruster Q-thruster Q-thruster Experimental Matter Compressor Long-range Tractor Beam Subatomic Replicator Terrabomb Vortex Rail Enhanced Hardcell Cannon Heavy Proton Missile Launcher Fusion Bomb Launcher Advanced Remote Datajack [Rating: 207] Favorites ----------- Power Hybrid Antimatter Reactor Engine Subdweller Power Source Power Core Micro Fission Core Reactor Hybrid Antimatter Reactor Propulsion Advanced Myomer Leg Treads Armored Medium Treads Leg Advanced Myomer Leg Wheel Wheel Flight Unit Q-thruster Utility A0-MCA's Component Scanner Device Seismic Detector Storage High-capacity Storage Unit Processor A0-MCA's Component Scanner Hackware Hacking Suite Protection Improved Powered Armor Artifact Phase Armor Weapon Advanced Plasma Cannon Energy Gun Salvaging Laser Energy Cannon Advanced Plasma Cannon Ballistic Gun Helical Railgun Ballistic Cannon Enhanced Hardcell Cannon Launcher Smartbomb Launcher Special Weapon Improved Remote Datajack Slashing Weapon Power Sword Piercing Weapon Lance Special Melee Weapon Datajack Build | -11 -10 -10 -8 -6 -6 -6 -6 -6 -6 -5 -5 -5 -5 -5 -5 -5 -4 -4 -4 -4 -4 -4 -4 -3 -3 -3 -2 -2 -2 -1 ------- Run | Yrd Mat Sub Scr Fac Was Fac Low Low Dat Pro Fac Was Fac Upp Upp Zhi Pro Fac Was Fac Upp Upp War Pro Res Tes Res Qua Frg Acc Slots Evolved 18 | . . . . 8 . . . . . . 2 . . . . . . 2 . . . . . . 2 . 2 . . 2 Power 2 | . . . . 1 . . . . . . . . . . . . . . . . . . . . . . 1 . . . Propulsion 3 | . . . . 2 . . . . . . . . . . . . . . . . . . . . 1 . . . . . Utility 12 | . . . . 4 . . . . . . 2 . . . . . . 2 . . . . . . 1 . 1 . . 2 Weapon 1 | . . . . 1 . . . . . . . . . . . . . . . . . . . . . . . . . . Parts Attached 297 | 8 2 16 6 41 6 7 3 3 . 3 17 6 39 7 2 8 1 20 3 9 5 4 3 6 2 14 22 8 5 21 Power 41 | 2 . 1 . 8 2 1 1 . . . 1 3 6 1 . 2 . 1 . 1 . 1 . 2 1 1 3 1 . 2 Engine 7 | 2 . 1 . 3 . . . . . . . . 1 . . . . . . . . . . . . . . . . . Core 14 | . . . . 4 1 1 . . . . 1 . 5 1 . 1 . . . . . . . . . . . . . . Reactor 20 | . . . . 1 1 . 1 . . . . 3 . . . 1 . 1 . 1 . 1 . 2 1 1 3 1 . 2 Propulsion 60 | 2 . 6 2 6 1 2 1 1 . . 1 1 9 2 . 1 . 8 3 . . . 1 . . . 4 2 1 6 Treads 19 | . . 3 1 5 . 2 . 1 . . . 1 3 2 . 1 . . . . . . . . . . . . . . Leg 21 | . . . . . 1 . . . . . . . . . . . . 8 3 . . . 1 . . . 4 2 1 1 Wheel 15 | 2 . 3 1 1 . . 1 . . . 1 . 6 . . . . . . . . . . . . . . . . . Hover . | . . . . . . . . . . . . . . . . . . . . . . . . . . . . . . . Flight 5 | . . . . . . . . . . . . . . . . . . . . . . . . . . . . . . 5 Utility 114 | 2 2 5 2 16 2 3 . 1 . 1 9 1 12 2 . 2 . 9 . 6 3 2 . 1 1 6 11 3 2 10 Device 57 | 1 . 3 1 5 2 . . 1 . . 6 1 6 1 . 1 . 4 . 4 2 1 . . 1 1 8 1 . 7 Storage 9 | 1 2 . 1 2 . . . . . . . . . . . . . 1 . . . . . . . 1 . . . 1 Processor 19 | . . . . 6 . 1 . . . . 2 . 2 . . . . 3 . . . . . . . 2 1 . . 2 Hackware 4 | . . . . . . 1 . . . . . . 1 . . . . . . 2 . . . . . . . . . . Protection 23 | . . 2 . 3 . 1 . . . 1 1 . 3 1 . 1 . 1 . . 1 1 . 1 . 2 2 . 2 . Artifact 2 | . . . . . . . . . . . . . . . . . . . . . . . . . . . . 2 . . Weapon 82 | 2 . 4 2 11 1 1 1 1 . 2 6 1 12 2 2 3 1 2 . 2 2 1 2 3 . 7 4 2 2 3 Energy Gun 11 | 1 . 2 . 1 . . . . . . . . 2 . 1 . . . . . 1 . 1 . . . . . 1 1 Energy Cannon 18 | . . 1 . 3 . 1 . . . . 1 . 3 1 . . . 1 . 1 1 1 . . . 1 1 . 1 1 Ballistic Gun 23 | 1 . 1 . 4 1 . . 1 . 1 2 1 5 . 1 1 . . . . . . . 3 . 1 . . . . Ballistic Cannon 14 | . . . . 2 . . 1 . . 1 . . 2 1 . . . 1 . . . . . . . 2 3 1 . . Launcher 6 | . . . . . . . . . . . 3 . . . . . . . . 1 . . 1 . . . . 1 . . Special Weapon 6 | . . . . . . . . . . . . . . . . 2 . . . . . . . . . 3 . . . 1 Impact Weapon . | . . . . . . . . . . . . . . . . . . . . . . . . . . . . . . . Slashing Weapon 1 | . . . . 1 . . . . . . . . . . . . . . . . . . . . . . . . . . Piercing Weapon 1 | . . . . . . . . . . . . . . . . . 1 . . . . . . . . . . . . . Special Melee Weapon 2 | . . . 2 . . . . . . . . . . . . . . . . . . . . . . . . . . . Unidentified Prototypes 9 | . . . . . . . . . . . . . . . . 1 . . . . . . . . . 1 1 2 3 1 Corrupted Parts 4 | . . . . . . . . . . 1 . . . . . . . . . 1 . . . 2 . . . . . . System Corruption 29 | . . . . . . . . . . 6 . . . . . . . . . 5 . . . 18 . . . . . . Parts Lost 93 | . . 6 . 12 . . 2 2 . . 8 . 13 2 2 . . . . 2 . . . 3 1 3 7 3 7 20 Power 17 | . . 1 . 3 . . . 1 . . 1 . 4 . 1 . . . . . . . . . . . 1 . 2 3 Propulsion 24 | . . 3 . 1 . . . . . . 3 . 3 2 . . . . . 1 . . . . . . 2 . 2 7 Utility 34 | . . 1 . 4 . . 2 . . . 2 . 3 . 1 . . . . 1 . . . 1 1 2 3 3 2 8 Weapon 18 | . . 1 . 4 . . . 1 . . 2 . 3 . . . . . . . . . . 2 . 1 1 . 1 2 Highest Loss Streak 10 | . . 4 . 9 . . 1 2 . . 8 . 4 2 2 . . . . 1 . . . 1 1 2 2 2 7 10 To Critical Strikes 3 | . . . . . . . . . . . . . . . . . . . . . . . . . . . . . . 3 Average Backups 17 | 2 9 18 19 16 12 15 15 18 20 20 21 17 21 21 21 21 21 18 17 16 16 18 17 16 16 17 17 17 17 12 Power . | . 1 3 3 . . . . . . . . . . . 1 . . . . . . . . 1 1 1 . 1 1 . Propulsion 2 | 1 3 4 4 1 1 2 1 1 1 1 . . 1 1 1 . 1 2 2 2 2 2 3 3 2 2 1 1 . 2 Utility 7 | . 3 6 6 9 5 8 7 9 11 11 10 8 10 9 9 9 9 6 7 6 6 7 6 5 4 5 7 6 3 2 Weapon 5 | . . 3 3 1 3 3 4 5 6 6 7 4 5 7 7 8 8 6 5 4 4 5 5 5 5 7 6 5 6 4 Tool/Special . | . . . . . . . . . . . . . . . . . . . . . . . . . . . . . . . Unused Backups 51 | . . . 6 3 . 2 . 2 . . 6 3 6 1 . 1 . 3 1 1 . . 2 1 1 2 2 3 . 5 Power 4 | . . . 3 . . . . . . . . . . . . . . . . . . . . 1 . . . . . . Propulsion 8 | . . . . . . . . . . . . . 1 . . . . 3 . . . . 1 . . . . 1 . 2 Utility 26 | . . . 2 3 . 2 . 1 . . 2 1 5 . . 1 . . 1 . . . 1 . . 1 2 2 . 2 Weapon 10 | . . . . . . . . 1 . . 4 2 . 1 . . . . . . . . . . 1 1 . . . . Tool/Special 3 | . . . 1 . . . . . . . . . . . . . . . . 1 . . . . . . . . . 1 Average Slot Usage (%) 92 | . 100 99 99 83 92 100 95 92 79 90 86 75 84 96 93 81 78 93 93 94 92 91 96 97 94 96 94 98 92 72 Engine 2 | . 14 13 13 2 . . . 3 6 6 . . 2 . . . . . . . . . . . . . . . . . Core 3 | . . . . 4 12 6 6 6 6 6 10 3 3 11 9 8 5 4 . . . . . . . . . . . . Reactor 5 | . . . . 1 . 6 6 1 . . . 5 2 . . 2 5 5 10 10 10 10 10 10 8 7 9 13 12 9 Treads 7 | . . 14 9 13 25 26 18 13 13 13 10 4 2 16 17 18 17 1 . . . . . . . . . . . . Leg 9 | . . . . . . . . . . . . . . . . . . 19 21 20 21 21 21 21 23 23 21 21 20 15 Wheel 4 | . 28 13 18 2 . . 3 6 6 6 5 5 12 4 5 2 . . . . . . . . . . . . . . Device 12 | . 14 12 14 8 4 4 5 8 13 13 18 16 12 10 10 9 10 14 15 14 14 14 14 13 12 15 17 18 12 16 Storage 6 | . 14 14 14 5 3 6 6 6 6 6 5 5 5 5 5 5 5 5 5 5 5 5 5 5 4 4 4 4 4 3 Processor 19 | . . . . 18 26 26 25 17 13 13 15 17 18 29 29 29 23 25 26 26 26 26 26 26 23 23 21 21 21 17 Protection 2 | . . 1 . 2 . 1 1 6 6 6 4 . 3 . . . . . . 1 . . 3 5 5 5 5 4 3 . Energy Gun 1 | . 14 16 1 . 4 . . . 2 . . . 2 1 . . . . . . . 1 . . . . . . . . Energy Cannon 4 | . . 7 1 6 2 1 6 1 . . 3 . 2 4 5 . . 8 9 7 6 8 7 . . 2 4 . . 1 Ballistic Gun 4 | . 14 4 . 6 3 13 13 17 3 14 1 13 10 1 3 . . . . . . . . 13 12 8 1 . . . Ballistic Cannon 2 | . . . . 1 3 . . . . 1 4 . . . . . . 4 5 6 6 . 3 . . . 4 8 9 4 Special Melee Weapon 1 | . . . 24 . . . . . . . . . . . . . . . . . . . . . . . . . . . Peak Build Rating 207 | 9 10 16 20 97 71 73 78 77 74 80 98 99 105 98 96 107 108 131 133 134 138 140 143 144 158 172 192 204 195 207 Average Rating 102 | 5 9 11 18 70 63 70 74 74 61 75 91 92 88 95 92 79 103 124 130 130 132 137 136 141 153 160 183 181 185 156 On Entrance 95 | . 9 10 16 18 69 71 71 76 74 74 80 68 99 89 94 85 107 95 131 131 123 133 139 137 139 148 171 179 182 154 Avg Prop Armor Cover (%) 13 | . . 13 8 . 3 . 12 9 7 10 9 10 7 22 23 31 . . 3 . . . . . . . . 2 . 9 Naked Turns . | . . . . . . . . . . . . . . . . . . . . . . . . . . . . . . . Heaviest Build 164 | 13 88 96 95 128 82 92 95 135 117 151 164 134 151 130 130 131 124 124 115 118 119 121 131 117 129 122 155 164 157 150 Greatest Support 150 | 32 32 40 40 104 96 96 96 56 56 28 28 70 54 109 10 124 124 124 120 120 120 120 120 120 150 150 150 143 148 145 Greatest Overweight (x) 14 | . 2 9 8 4 . . 3 4 2 5 5 6 14 12 12 9 . . 1 1 . 1 1 . . . 1 1 1 1 Average Overweight (x) 1 | . . 3 4 1 . . 1 3 1 4 4 5 4 9 10 4 . . . . . . . . . . . . . . Largest Inventory Capacity 25 | 8 25 25 25 25 20 20 25 25 25 25 25 25 25 25 25 25 25 25 20 20 20 20 20 20 20 20 20 20 20 20 Average Capacity 21 | 7 13 25 23 20 14 20 20 24 25 25 25 25 25 25 25 25 25 20 20 20 20 20 20 20 20 20 20 20 20 14 Most Carried 25 | 5 11 25 25 24 20 20 20 25 25 25 25 25 25 25 25 25 24 25 20 20 20 20 20 20 20 20 20 20 20 17 Average Carried 20 | 2 9 19 22 19 14 19 19 22 25 24 24 22 23 24 24 24 22 20 19 19 18 19 19 18 17 19 19 19 19 13 Final Capacity 25 | 8 25 25 15 20 20 20 20 25 25 25 25 25 25 25 25 25 25 20 20 20 20 20 20 20 20 20 20 20 20 5 Final Carried 25 | 5 11 25 15 20 20 20 19 25 25 25 19 25 25 25 24 22 24 20 20 19 20 20 20 18 20 20 20 20 14 4 Scrap Suit Usage (%) 1 | . . . . . . . . . . . 1 . . . . . . . . . . . . . . . . . . . Class Distribution -------------------- 26% | Skirmisher 18% | Mutant 17% | Gunner 9% | Scavenger-Skirmisher 8% | Scavenger-Gunner 8% | Scavenger-Mutant 4% | Scavenger-Tank Dominant Class ---------------- Mutant | -10/Materials Scavenger-Mutant | -10/Subcaves Mutant | -8/Scraptown Gunner | -6/Factory Mutant | -6/Waste Scavenger-Mutant | -6/Factory Scavenger-Gunner | -6/Lower Caves Gunner | -6/Lower Caves Mutant | -6/Data Miner Gunner | -5/Proximity Caves Skirmisher | -5/Factory Scavenger-Scrapper | -5/Waste Scavenger-Gunner | -5/Factory Skirmisher | -5/Upper Caves Skirmisher | -5/Upper Caves Mutant | -5/Zhirov Mutant | -4/Proximity Caves Skirmisher | -4/Factory Gunner | -4/Waste Skirmisher | -4/Factory Skirmisher | -4/Upper Caves Skirmisher | -4/Upper Caves Skirmisher | -4/Warlord Scavenger-Skirmisher | -3/Proximity Caves Scavenger-Skirmisher | -3/Research Skirmisher | -3/Testing Skirmisher | -2/Research Scavenger-Skirmisher | -2/Quarantine Scavenger-Tank | -2/Protoforge Mutant | -1/Access Resources | -11 -10 -10 -8 -6 -6 -6 -6 -6 -6 -5 -5 -5 -5 -5 -5 -5 -4 -4 -4 -4 -4 -4 -4 -3 -3 -3 -2 -2 -2 -1 ----------- Run | Yrd Mat Sub Scr Fac Was Fac Low Low Dat Pro Fac Was Fac Upp Upp Zhi Pro Fac Was Fac Upp Upp War Pro Res Tes Res Qua Frg Acc Matter Collected 16694 | 281 51 272 65 1022 990 442 316 157 . 153 284 569 1296 659 192 312 255 736 163 668 648 302 323 715 505 1093 1592 938 574 1121 Remotely 1129 | . . . . . . . . . . . . . . . . . . . . . . . . . . . 418 508 . 203 Salvage Created 20260 | 95 176 367 . 1618 108 365 275 149 . . 580 496 2805 482 24 312 224 915 303 699 930 536 851 774 834 1252 2302 702 405 1681 Parts 945 | 8 10 33 . 78 5 18 15 9 . . 34 5 130 14 3 11 4 53 4 32 25 19 37 29 50 69 115 37 21 77 Haulers Intercepted 5 | . . . . . . . . . . . . . 1 . . . . . . . 1 . . . 1 . . . . 2 Recyclers Shooed 5 | . 1 . . . . . . . . . . . . . . . . . . . . . . . . . 2 1 . 1 Parts Field Recycled . | . . . . . . . . . . . . . . . . . . . . . . . . . . . . . . . Retrieved Matter . | . . . . . . . . . . . . . . . . . . . . . . . . . . . . . . . Parts Self-Destructed 113 | . . 22 . . . . 18 7 . 6 . . . 10 3 9 5 . . . 15 10 . 8 . . . . . . Prevented 46 | . . . . . . . . . . . . . . . . . . . . . 12 13 . 21 . . . . . . Parts Restored . | . . . . . . . . . . . . . . . . . . . . . . . . . . . . . . . Kills | -11 -10 -10 -8 -6 -6 -6 -6 -6 -6 -5 -5 -5 -5 -5 -5 -5 -4 -4 -4 -4 -4 -4 -4 -3 -3 -3 -2 -2 -2 -1 ------- Run | Yrd Mat Sub Scr Fac Was Fac Low Low Dat Pro Fac Was Fac Upp Upp Zhi Pro Fac Was Fac Upp Upp War Pro Res Tes Res Qua Frg Acc Combat Hostiles Destroyed 292 | . 4 10 . 28 . 4 6 4 . . 11 1 39 12 2 . 7 13 . 11 9 9 27 11 10 13 29 10 7 15 Melee 8 | . . . . 8 . . . . . . . . . . . . . . . . . . . . . . . . . . Guns 77 | . 4 7 . 1 . 3 5 4 . . . 1 29 . 2 . . . . . . . . 6 7 8 . . . . Cannons 104 | . . 3 . 17 . 1 1 . . . 5 . 3 1 . . . 12 . 8 4 4 1 . . 2 19 8 6 9 AOE 74 | . . . . 1 . . . . . . 6 . . 9 . . 7 . . 3 4 5 25 1 3 1 3 2 . 4 Classes Destroyed 26 | 2 3 2 . 5 1 . 1 . . . 1 1 1 3 . . . . 1 . 1 . 3 . . 1 . . . . Worker 25 | 2 . . . 2 . . . . . . 1 . 3 . . . . 1 . . . . . . 1 3 1 2 1 8 Builder 19 | . . . . 1 . . . . . . 1 . 4 . . . . 2 . . . . . . . 4 2 2 . 3 Tunneler 9 | 3 . . . . . . . . . . 1 . 1 . . . . . . . . . . . . . . . . 4 Hauler 5 | . . . . . . . . . . . . . 1 . . . . . . . 1 . . . 1 . . . . 2 Recycler 16 | . . . . 2 . 1 . . . . . . 2 . . . . . . . . . . . 1 2 2 1 . 5 Minesweeper 1 | . . . . . . . . . . . . . . 1 . . . . . . . . . . . . . . . . Mechanic 1 | . . . . . . . . . . . . . . . . . . . . . . . . . . 1 . . . . Operator 4 | . 1 . . 2 . . . . . . . . . . . . . . . . . . . . . . . . 1 . Drone 1 | . . . . . . . . . . . . . . . . . . . . . 1 . . . . . . . . . Watcher 6 | . . . . 1 . . . . . . . . . . . . . . . . . . . . . 1 . 1 1 2 Swarmer 45 | . 1 4 . 8 . . 3 3 . . 2 . 4 . . . 3 . . . . . 4 1 3 . 3 . . 6 Saboteur 3 | . . . . . . . . . . . . . . . . . . . . . . . 3 . . . . . . . Grunt 89 | . 3 1 . 8 . . 2 . . . 1 . 14 11 . . 4 3 . 2 6 8 10 4 2 6 1 2 . 1 Brawler 3 | . . . . . . . . . . . . . . 1 . . . . . . 1 . . . . 1 . . . . Duelist 1 | . . . . . . . . . . . . . . . . . . . . . . . . 1 . . . . . . Protector 1 | . . . . . . . . . . . . . . . . . . . . . . . 1 . . . . . . . Sentry 28 | . . 1 . 4 . 3 . . . . 1 . 5 . . . . 2 . 2 . 1 . 1 . . 5 . 3 . Specialist 5 | . . . . . . . . . . . 1 . . . . . . 1 . . . . 1 . . . 2 . . . Hunter 40 | . . . . 3 . . . . . . 5 . 8 . . . . 2 . 4 2 . . 4 2 . 5 . . 5 Programmer 65 | . . . . 5 . 1 . . . . 1 . 8 . 2 . . 5 . 3 . . 5 . 3 6 13 8 2 3 Behemoth 2 | . . . . . . . 1 1 . . . . . . . . . . . . . . . . . . . . . . Compactor 1 | . . . . . . . . . . . . 1 . . . . . . . . . . . . . . . . . . Hotshot 2 | . . . . . . . . . . . . . . . . . . . . . . . . . . . . . 2 . Executioner 3 | . . . . . . . . . . . . . . . . . . . . . . . 3 . . . . . . . Subdweller 4 | . . 4 . . . . . . . . . . . . . . . . . . . . . . . . . . . . Samaritan 1 | . . . . . . . . . . . . . . 1 . . . . . . . . . . . . . . . . Butcher 1 | . . . . . . . . . . . . . . . . . . . 1 . . . . . . . . . . . Bouncer 1 | . . . . . . . . . . . . . . . . . . . . . . . 1 . . . . . . . Martyr 2 | . . . . . 2 . . . . . . . . . . . . . . . . . . . . . . . . . Best Kill Streak 13 | 3 3 4 . 7 . 2 3 3 . . 8 1 6 5 2 . 3 3 . 3 6 3 13 4 5 6 4 7 3 9 Combat Bots Only 13 | . 2 4 . 4 . 1 3 3 . . 6 1 6 5 2 . 3 2 . 3 5 3 13 4 3 3 4 3 2 4 Max Kills in Single Turn 7 | 1 2 2 . 2 1 2 1 1 . . 3 1 2 2 1 . 3 1 1 3 3 3 7 1 2 4 2 2 2 3 Gunslinging 1 | . 1 1 . . . . . . . . . . 1 . . . . . . . . . . . . . . . . . Exploded 7 | . . . . 1 . . . . . . 2 . . 2 . . 3 . . 3 3 3 7 1 1 1 1 2 . 1 Melee 1 | . . . . 1 . . . . . . . . . . . . . . . . . . . . . . . . . . Uniques/NPCs Destroyed . | . . . . . . . . . . . . . . . . . . . . . . . . . . . . . . . Combat | -11 -10 -10 -8 -6 -6 -6 -6 -6 -6 -5 -5 -5 -5 -5 -5 -5 -4 -4 -4 -4 -4 -4 -4 -3 -3 -3 -2 -2 -2 -1 -------- Run | Yrd Mat Sub Scr Fac Was Fac Low Low Dat Pro Fac Was Fac Upp Upp Zhi Pro Fac Was Fac Upp Upp War Pro Res Tes Res Qua Frg Acc Hostile Shots Fired 2676 | . 8 76 . 386 . 49 32 22 . 12 198 1 299 10 18 . 4 83 . 134 31 14 60 60 94 188 331 90 176 300 Missed 963 | . 3 18 . 122 . 19 11 6 . 4 58 . 87 2 7 . 1 25 . 60 10 5 37 25 25 82 144 37 57 118 Hits 1713 | . 5 58 . 264 . 30 21 16 . 8 140 1 212 8 11 . 3 58 . 74 21 9 23 35 69 106 187 53 119 182 Melee 16 | . . . . . . . . . . . 1 1 . . . . . . . 2 . . . . . 1 . . 4 7 Projectile 1697 | . 5 58 . 264 . 30 21 16 . 8 139 . 212 8 11 . 3 58 . 72 21 9 23 35 69 105 187 53 115 175 AOE 3 | . . . . . . . . . . . 1 . 1 . . . . . . . . . 1 . . . . . . . Critical Strikes 77 | . . . . 3 . . 2 . . . 1 . 7 . . . . 1 . 11 . 1 1 1 5 12 9 5 9 9 Actively Blocked 15 | . . . . . . . . . . . . . . . . . . . . . . . . . . 1 1 3 9 1 Part Disruptions 18 | . . . . . . . 2 . . . 7 . . 1 . . . 1 . . . . . 2 . 1 2 2 . . Damage Taken 29659 | . 61 920 . 3663 6 345 432 375 . 153 2283 46 3948 427 230 . 59 971 . 1248 242 106 595 789 763 1511 2026 930 3389 4141 Core 4953 | . 33 211 . 692 . 30 77 . . 20 450 . 324 88 61 . . 93 . 102 17 11 19 39 37 109 135 93 701 1611 Absorbed by Shields 4410 | . . . . 107 . . . . . . . . 74 . . . . 212 . 345 193 83 34 8 529 930 1554 290 . 51 Redirected to Core 862 | . . . . . . . . . . . . . . . . . . . . . . . . . . . . 29 495 338 Redirected to Shielding 67 | . . 20 . . . . . . . . . . . . . . . . . . . . . . . 10 37 . . . Ignored by Resistances 262 | . . . . . . . . . . . 203 . . . . . . . . . . . . . . . 59 . . . Regen/Repaired (Parts) 1584 | . . . . . 332 94 153 132 . 32 . . 149 . . . . . 406 35 . . 251 . . . . . . . Core Remaining (%) 42 | 100 . . 2 . . . . . . 3 . . . . . . 7 . . . . . . 75 . 81 . . 28 . Volleys Fired 1241 | 11 21 37 . 81 4 14 10 8 . 2 38 13 146 29 15 32 7 92 2 75 46 21 42 32 29 106 154 76 33 65 Largest 4 | 2 2 2 . 4 3 3 3 3 . 1 2 3 3 2 2 1 1 3 1 3 2 2 3 3 3 3 3 2 3 3 Hottest 271 | 60 60 110 . 245 178 163 165 165 . 70 151 99 271 173 98 75 46 242 56 191 169 186 238 238 114 181 201 120 200 236 Shots Fired 1983 | 22 41 73 . 177 10 29 26 24 . 2 39 34 343 30 22 30 7 134 3 100 56 27 45 61 69 167 174 95 53 90 Gun 778 | 22 41 56 . 48 3 20 21 21 . . . 34 261 1 11 24 . . . . 1 . 2 39 60 103 7 . . 3 Cannon 1062 | . . 17 . 129 7 9 5 3 . 2 29 . 78 18 7 . . 134 3 90 51 21 31 8 6 44 159 87 51 73 Launcher 111 | . . . . . . . . . . . 10 . 4 11 4 . 7 . . 10 4 6 12 14 3 . 7 3 2 14 Special 32 | . . . . . . . . . . . . . . . . 6 . . . . . . . . . 20 1 5 . . Kinetic 981 | 11 21 9 . 75 6 20 21 21 . 2 22 34 199 . 11 . . 31 3 44 18 . 24 32 60 103 47 67 48 52 Thermal 691 | 11 20 64 . 102 4 9 5 3 . . . . 125 13 7 29 . 81 . 30 1 11 5 2 6 33 86 20 3 21 Explosive 47 | . . . . . . . . . . . 4 . . 11 4 . 7 . . 1 4 5 5 3 . 3 . . . . Electromagnetic 221 | . . . . . . . . . . . 13 . 19 6 . . . 22 . 25 33 11 2 17 3 11 40 3 2 14 Entropic 19 | . . . . . . . . . . . . . . . . . . . . . . . 9 7 . . . . . 3 Robot Hit Streak 26 | 5 11 9 . 22 5 3 9 7 . . 17 5 25 4 7 25 . 26 1 4 8 11 21 7 12 15 12 6 8 11 Robot Miss Streak 8 | 2 3 3 . 8 1 1 4 2 . 1 2 1 3 4 2 1 . 4 2 3 3 1 1 2 2 4 2 3 4 3 Penetration Max 2 | . . . . 1 . 1 1 . . . . . 1 . . . . . . . 1 . 1 . 1 2 2 . . . Secondary Targets 17 | . 1 2 . . . . . . . . . . 9 . . . . . . . . . . 1 2 2 . . . . Max Gunslinging Chain 2 | . 1 1 . . . . . . . . . . 2 . . . . . . . . . . 1 1 1 . . . . Capacitor 68 | . . . . . . . . . . . . . . . . . . . . . . . . . . . 68 . . . Shots Hit Robots 1068 | 14 27 38 2 117 12 11 16 16 . . 19 24 217 9 8 28 . 49 1 27 29 10 30 30 38 95 96 35 24 46 Core Hits 662 | 7 11 14 . 60 5 9 13 7 . . 24 4 92 23 4 7 14 22 2 24 30 17 50 23 24 44 47 19 27 39 Critical Kills 33 | . . . . 3 . . . . . . . . . 1 . . . 9 2 7 . . 1 1 2 5 1 . 1 . Critical Parts Destroyed 39 | . . . . 1 . . . . . . . . 2 . 1 . . 3 2 5 4 . 9 3 1 4 4 . . . Critical Strikes 104 | . . . . 11 . . . . . . 2 1 5 1 1 1 . 12 4 12 4 . 15 4 3 10 8 4 2 4 Burn 2 | . . . . . . . . . . . . . 2 . . . . . . . . . . . . . . . . . Meltdown 6 | . . . . 2 . . . . . . . . . 1 . . . . . . . . . . . 1 1 . 1 . Destroy 70 | . . . . 2 . . . . . . . 1 2 . 1 . . 12 4 12 4 . 14 3 3 8 4 . . . Blast 14 | . . . . . . . . . . . 2 . 1 . . . . . . . . . . . . . 2 4 1 4 Corrupt 2 | . . . . . . . . . . . . . . . . . . . . . . . . . . 1 1 . . . Sever 8 | . . . . 7 . . . . . . . . . . . 1 . . . . . . . . . . . . . . Detonate 2 | . . . . . . . . . . . . . . . . . . . . . . . 1 1 . . . . . . Melee Attacks 72 | . . . 2 48 3 5 . . . 8 2 . . . . . . 4 . . . . . . . . . . . . Impact . | . . . . . . . . . . . . . . . . . . . . . . . . . . . . . . . Slashing 60 | . . . . 44 3 5 . . . 8 . . . . . . . . . . . . . . . . . . . . Piercing 4 | . . . . . . . . . . . . . . . . . . 4 . . . . . . . . . . . . Sneak Attacks 12 | . . . 2 5 3 . . . . . 2 . . . . . . . . . . . . . . . . . . . Combat Hostiles . | . . . . . . . . . . . . . . . . . . . . . . . . . . . . . . . Follow-up Attacks . | . . . . . . . . . . . . . . . . . . . . . . . . . . . . . . . Damage Inflicted 56677 | 136 282 501 . 3744 496 389 441 436 . . 1964 634 6684 2169 561 568 1233 1519 75 1389 2001 1143 7368 1673 1457 3631 5267 2433 3233 5250 Guns 12589 | 136 272 307 . 787 39 313 288 322 . . . 634 4991 29 251 485 . . . . 24 . 79 704 1113 1622 83 . . 110 Cannons 19062 | . . 194 . 1468 229 71 153 114 . . 1007 . 1155 289 . . . 1519 75 544 1025 320 462 120 . 579 3883 1636 1389 2830 Explosions 22489 | . . . . 253 . . . . . . 957 . 524 1844 310 . 1233 . . 845 952 823 6827 849 303 1317 1008 693 1730 2021 Melee 1434 | . . . . 1206 228 . . . . . . . . . . . . . . . . . . . . . . . . . Ramming 937 | . 10 . . 30 . 5 . . . . . . 14 7 . . . . . . . . . . 41 30 293 104 114 289 Kinetic 17624 | 55 105 77 . 1035 172 313 288 322 . . 792 634 3887 . 251 . . 451 75 274 95 . 427 552 1113 1622 1082 1636 824 1542 Thermal 14647 | 81 167 424 . 1473 96 71 153 114 . . . . 1856 125 . 568 . 571 . 250 24 146 510 79 109 213 2391 461 2115 2650 Explosive 9148 | . . . . . . . . . . . 347 . . 1844 310 . 1233 . . 272 952 742 1997 134 . 1317 . . . . Electromagnetic 8143 | . . . . . . . . . . . 825 . 927 193 . . . 497 . 593 930 255 35 756 194 366 1501 232 180 659 Impact . | . . . . . . . . . . . . . . . . . . . . . . . . . . . . . . . Slashing 1517 | . . . . 1206 228 . . . . . . . . . . . . . . . . . . . . 83 . . . . Piercing . | . . . . . . . . . . . . . . . . . . . . . . . . . . . . . . . Entropic 4661 | . . . . . . . . . . . . . . . . . . . . . . . 4399 152 . . . . . 110 Highest Corruption 38 | . . . . 9 9 9 9 9 9 15 6 6 16 16 19 19 19 4 4 9 . . 1 19 10 22 15 27 38 2 Average Corruption 10 | . . . . 5 9 9 9 9 9 9 3 6 10 16 16 19 19 3 4 4 . . 1 5 9 16 8 20 29 2 Corruption Purged 12 | . . . . . . . . . . . . . . . . . . . . 12 . . . . . . . . . . Corruption Blocked . | . . . . . . . . . . . . . . . . . . . . . . . . . . . . . . . Effects 824 | . . . . 46 36 33 26 31 7 22 1 21 96 77 65 23 17 18 12 40 . . 5 19 5 68 47 66 43 . Message Errors 172 | . . . . 14 7 6 7 7 1 5 . 2 22 21 13 3 4 5 . 10 . . 1 . 3 16 8 10 7 . Matter Fused 200 | . . . . 6 12 6 7 6 1 6 . 6 22 13 24 5 6 6 5 11 . . . 6 2 15 12 14 9 . Heat Flow Errors 103 | . . . . 6 6 4 5 7 1 2 1 3 13 11 6 4 1 . 1 5 . . 1 3 . 6 5 9 3 . Energy Discharges 101 | . . . . 9 4 6 2 2 . 4 . 4 10 8 3 3 3 2 1 5 . . 1 4 . 8 6 12 4 . Parts Rejected 9 | . . . . 1 . 1 . . . . . 1 . . . . . . . 1 . . . . . 1 2 . 2 . Parts Fused 8 | . . . . . . 2 . 1 . . . 1 2 . 1 . . . . . . . . . . . . . 1 . Data Loss (minor) 106 | . . . . 7 3 2 4 5 3 4 . 1 9 13 13 4 3 . 2 4 . . . 2 . 7 4 9 7 . Data Loss (major) 44 | . . . . 1 2 2 . 1 1 1 . 1 7 8 2 1 . . 1 2 . . 1 1 . 4 2 4 2 . Misfires 26 | . . . . 2 1 2 1 1 . . . . 5 1 2 . . 2 1 1 . . . 2 . 3 1 1 . . Alerts 12 | . . . . . 1 . . . . . . 1 . . . 1 . 2 1 . . . . 1 . 2 1 1 1 . Misdirections 13 | . . . . . . . . . . . . . 1 1 . . . . . . . . . . . 4 1 2 4 . Weapon Failures 30 | . . . . . . 2 . 1 . . . 1 5 1 1 2 . 1 . 1 . . 1 . . 2 5 4 3 . Overload Shots . | . . . . . . . . . . . . . . . . . . . . . . . . . . . . . . . Overflow Damage 2271 | . . . . 84 15 . . . . . 288 . . 102 . 9 5 11 . . 99 4 243 22 4 82 226 111 376 590 Projectiles 1251 | . . . . . . . . . . . 265 . . 57 . 9 . 11 . . 99 . . . . . 143 93 271 303 Explosions 897 | . . . . 28 . . . . . . 23 . . 45 . . 5 . . . . 4 243 22 . 82 40 18 105 282 Melee 123 | . . . . 56 15 . . . . . . . . . . . . . . . . . . . 4 . 43 . . 5 Knockbacks 59 | . . . . 8 . . . . . . 7 . 3 . . . . 3 1 3 2 . . . . 1 6 7 7 11 Impact 7 | . . . . . . . . . . . . . . . . . . . . . . . . . . 1 3 . . 3 Kinetic 51 | . . . . 8 . . . . . . 6 . 3 . . . . 3 1 3 2 . . . . . 3 7 7 8 Secondary 1 | . . . . . . . . . . . 1 . . . . . . . . . . . . . . . . . . . Self-Inflicted Damage 419 | . 5 . . 11 . . . . . . . . 17 3 . . . . . . . . . 130 . 103 79 . . 71 Shots 8 | . . . . . . . . . . . . . 1 . . . . . . . . . . 3 . 1 2 . . 1 Rammed 7 | . 1 . . 1 . 1 . . . . . . 1 2 . . . . . . . . . . . . . . . 1 Targets Rammed 58 | . 1 . . 3 . 1 . . . . . . 1 2 . . . . . . . . . . 2 5 16 4 5 18 Kicked 49 | . . . . . . . . . . . . . . . . . . . . . . . . . 2 5 16 4 5 17 Crushed 2 | . . . . 2 . . . . . . . . . . . . . . . . . . . . . . . . . . Highest Temperature 658 | 40 70 66 . 501 248 330 390 242 68 240 217 206 406 269 221 247 190 198 86 260 156 111 192 194 20 227 658 190 . . Average Temperature 81 | 18 22 21 . 110 90 101 114 84 40 105 57 63 106 91 71 113 106 47 48 37 31 28 63 66 11 36 104 115 . . Received Heat Transfer 3224 | . 30 132 . 596 . 60 90 60 . 72 102 . 522 75 . . 18 27 . 241 50 40 30 94 4 157 110 36 513 165 Effects 16 | . . . . 4 . . 2 . . . . . 3 . . . . . . . . . . . . . 7 . . . Shutdowns 5 | . . . . 2 . . 2 . . . . . 1 . . . . . . . . . . . . . . . . . Energy Bleed 4 | . . . . 2 . . . . . . . . 1 . . . . . . . . . . . . . 1 . . . Matter Decay 1 | . . . . . . . . . . . . . . . . . . . . . . . . . . . 1 . . . Short Circuit 2 | . . . . . . . . . . . . . 1 . . . . . . . . . . . . . 1 . . . Damage (minor) 1 | . . . . . . . . . . . . . . . . . . . . . . . . . . . 1 . . . Damage (major) 3 | . . . . . . . . . . . . . . . . . . . . . . . . . . . 3 . . . Siege Activations . | . . . . . . . . . . . . . . . . . . . . . . . . . . . . . . . Martial Activations . | . . . . . . . . . . . . . . . . . . . . . . . . . . . . . . . Shielding Activations 1 | . . . . . . . . . . . . . . . . . . 1 . . . . . . . . . . . . Total Turns 26 | . . . . . . . . . . . . . . . . . . 26 . . . . . . . . . . . . Longest Duration 26 | . . . . . . . . . . . . . . . . . . 26 . . . . . . . . . . . . Robots Disrupted 2 | . . . . . . . . . . . 1 . . . . . . . . . . . 1 . . . . . . . Combat Hostiles 2 | . . . . . . . . . . . 1 . . . . . . . . . . . 1 . . . . . . . Robots Corrupted 28 | . . . . . . . . . . . . . 7 2 . . . 1 . . 1 . . 4 1 2 6 . . 4 Combat Hostiles 25 | . . . . . . . . . . . . . 7 2 . . . 1 . . 1 . . 4 . 2 6 . . 2 Parts Fried 43 | . . . . . . . . . . . 3 . 6 . . . . 1 . 1 2 . . 7 4 6 10 . . 3 Impact Corruptions 5 | . . . . . . . . . . . . . . 1 . . . . . . . . . . 1 . 2 . . 1 Robots Melted 6 | . . . . 2 . . . . . . . . . 1 . . . . . . . . . . . 1 1 . 1 . Combat Hostiles 4 | . . . . 1 . . . . . . . . . . . . . . . . . . . . . 1 1 . 1 . Parts Melted 33 | . 1 1 . 9 . . . . . . . . 7 . . . . 1 . 1 . . . . 1 1 8 . . 3 Heat Transferred 16408 | 175 375 909 . 2042 150 74 148 111 . . . . 2933 187 . 1036 . 750 . 150 37 148 300 50 100 222 1841 300 1920 2450 Parts Sabotaged 2 | . . . . . . . . . . . . . . . . . . . . 2 . . . . . . . . . . Parts Stolen . | . . . . . . . . . . . . . . . . . . . . . . . . . . . . . . . Parts Stripped . | . . . . . . . . . . . . . . . . . . . . . . . . . . . . . . . Power Chain Reactions 14 | . . . . . . . . . . . . . . . . . . . . 1 . . 3 . 1 . 4 2 1 2 Alert | -11 -10 -10 -8 -6 -6 -6 -6 -6 -6 -5 -5 -5 -5 -5 -5 -5 -4 -4 -4 -4 -4 -4 -4 -3 -3 -3 -2 -2 -2 -1 ------- Run | Yrd Mat Sub Scr Fac Was Fac Low Low Dat Pro Fac Was Fac Upp Upp Zhi Pro Fac Was Fac Upp Upp War Pro Res Tes Res Qua Frg Acc Maximum Alert Level 4 | . . . . 1 . 4 . . . . 2 1 3 . . . . 2 . 3 . . . . . 1 3 2 1 2 Low Security (%) 52 | 100 100 . . 80 100 38 . . . . 49 89 18 . . . . 75 100 18 . . . . 100 68 44 . . 22 Level 1 25 | . . . . 19 . 19 . . . . 6 10 43 . . . . 16 . 10 . . . . . 31 24 64 100 44 Level 2 15 | . . . . . . 30 . . . . 44 . 28 . . . . 8 . 20 . . . . . . 28 35 . 33 Level 3 6 | . . . . . . 6 . . . . . . 9 . . . . . . 49 . . . . . . 2 . . . Level 4 . | . . . . . . 4 . . . . . . . . . . . . . . . . . . . . . . . . Level 5 . | . . . . . . . . . . . . . . . . . . . . . . . . . . . . . . . High Security . | . . . . . . . . . . . . . . . . . . . . . . . . . . . . . . . Max Security . | . . . . . . . . . . . . . . . . . . . . . . . . . . . . . . . Peak Influence 1314 | 10 79 . . 351 114 1314 . . . . 682 238 854 . . . . 427 148 958 . . . . 154 272 714 487 349 530 Initial 399 | . 6 . . . 114 . . . . . . 238 . . . . . 42 148 . . . . . . 69 128 399 267 203 Average 251 | 2 17 . . 169 17 355 . . . . 267 80 371 . . . . 150 53 592 . . . . 38 148 299 387 254 306 Influence Increases 15179 | 25 193 180 . 963 64 1752 243 124 . 30 1074 8 1541 314 50 15 253 841 . 1813 262 234 720 310 358 676 1237 597 436 866 Destroy 0b10 Robot/C 7300 | . 80 120 . 560 . 620 160 80 . 20 420 . 780 260 40 . 200 380 . 740 220 200 520 220 200 260 580 200 140 300 Destroy 0b10 Robot/NC 550 | 25 5 . . 40 . 30 . . . . 35 . 55 10 . 15 . 25 . 25 15 . 5 . 15 60 25 30 15 120 Destroy Leader 1478 | . 30 . . 162 . 152 30 20 . . 82 . 192 40 10 . 30 90 . 164 20 30 . 30 32 42 170 42 42 68 Allied During Kill 1550 | . . . . . . 680 53 24 . 10 174 . . 4 . . 23 40 . 531 7 4 . . . . . . . . Successful Hack 380 | . 18 . . 20 . . . . . . 18 . 18 . . . . 61 . 62 . . . . 27 39 72 31 14 . Select Force Hacks 30 | . 30 . . . . . . . . . . . . . . . . . . . . . . . . . . . . . Disable Machine 870 | . . . . 75 . 90 . . . . 105 . 120 . . . . 45 . 60 . . . . 30 90 45 135 . 75 Anti-Garrison Action 150 | . . . . . . 150 . . . . . . . . . . . . . . . . . . . . . . . . Destroy Structure 1791 | . . . . 61 64 30 . . . . 210 8 196 . . . . 140 . 156 . . . . 54 170 255 144 135 168 Partial Spotted 75 | . 15 . . 15 . . . . . . . . . . . . . . . 15 . . . . . 15 . . 15 . Lose Combat Pursuer 1005 | . 15 60 . 30 . . . . . . 30 . 180 . . . . 60 . 60 . . 195 60 . . 90 15 75 135 Influence Decreases 14720 | 15 203 180 . 635 392 458 874 509 278 30 393 689 695 935 275 15 186 485 423 868 719 563 403 786 235 571 754 832 573 746 Entered New Map 4094 | . 4 . . . 214 . 480 127 278 . . 443 . 314 44 . . 25 275 . 351 93 159 476 . 54 100 312 209 136 Time Decay 9266 | 15 199 158 . 515 138 358 374 362 . 30 273 246 565 601 221 15 186 460 148 550 368 470 244 290 225 487 574 490 294 410 Lost Part 872 | . . 22 . 120 . . 20 20 . . 80 . 130 20 10 . . . . 20 . . . 20 10 30 70 30 70 200 Lost Ally 488 | . . . . . 40 100 . . . . 40 . . . . . . . . 298 . . . . . . 10 . . . Squads Dispatched 127 | . 3 . . 14 . 8 . . . . 7 . 20 . . . . 14 . 18 . . . . 4 5 12 6 4 12 Investigation 35 | . 1 . . 4 . 3 . . . . 3 . 8 . . . . 6 . 7 . . . . 2 . 1 . . . Extermination 38 | . . . . 5 . 2 . . . . . . 5 . . . . 4 . 5 . . . . 2 3 5 3 1 3 Reinforcement 34 | . 2 . . 2 . . . . . . 4 . 3 . . . . 1 . 5 . . . . . 2 6 2 3 4 Assault 6 | . . . . . . 2 . . . . . . . . . . . . . 1 . . . . . . . 1 . 2 Garrison 14 | . . . . 3 . 1 . . . . . . 4 . . . . 3 . . . . . . . . . . . 3 Intercept . | . . . . . . . . . . . . . . . . . . . . . . . . . . . . . . . Searches Triggered . | . . . . . . . . . . . . . . . . . . . . . . . . . . . . . . . Data Miner Redirects 9 | . . . . . . . . . . . 1 . 3 . . . . . . 3 . . . . . . . . . 2 Construction Impeded 8 | . . . . 1 . . . . . . . . 1 . . . . . . 2 . . . . . . 1 . . 3 Haulers Reinforced 1 | . . . . . . . . . . . . . . . . . . . . . . . . . . . . 1 . . Active Scanning Responses . | . . . . . . . . . . . . . . . . . . . . . . . . . . . . . . . Cargo Convoy Interrupts 1 | . . . . . . . . . . . 1 . . . . . . . . . . . . . . . . . . . Stealth | -11 -10 -10 -8 -6 -6 -6 -6 -6 -6 -5 -5 -5 -5 -5 -5 -5 -4 -4 -4 -4 -4 -4 -4 -3 -3 -3 -2 -2 -2 -1 --------- Run | Yrd Mat Sub Scr Fac Was Fac Low Low Dat Pro Fac Was Fac Upp Upp Zhi Pro Fac Was Fac Upp Upp War Pro Res Tes Res Qua Frg Acc Distress Signals 28 | . 1 . . 2 . 1 . . . . 1 . 3 . . . . 1 . 2 1 . 1 . 1 4 2 1 2 5 Communications Jammed 61 | . . . . . . . . . . . . . . . . . . 12 . . . . . . 1 4 30 14 . . Distress Signals 61 | . . . . . . . . . . . . . . . . . . 12 . . . . . . 1 4 30 14 . . Times Spotted 574 | . 11 12 . 40 4 25 8 4 . 3 32 1 58 6 2 . 9 26 1 50 7 5 75 14 11 30 43 16 37 44 Peak Tracking Total 17 | . 4 6 . 4 3 4 4 3 . 2 10 1 6 5 2 . 4 5 1 7 4 3 17 4 3 5 6 4 12 12 Tactical Retreats 41 | . 1 2 . 1 . . . . . . 2 . 7 . . . . 3 . 3 . . 8 2 . . 6 1 2 3 Traps | -11 -10 -10 -8 -6 -6 -6 -6 -6 -6 -5 -5 -5 -5 -5 -5 -5 -4 -4 -4 -4 -4 -4 -4 -3 -3 -3 -2 -2 -2 -1 ------- Run | Yrd Mat Sub Scr Fac Was Fac Low Low Dat Pro Fac Was Fac Upp Upp Zhi Pro Fac Was Fac Upp Upp War Pro Res Tes Res Qua Frg Acc Traps Triggered 26 | . . 3 . 1 . . 1 . . . 1 . 3 1 . . . 2 . 9 . . . . . 1 2 . 1 1 Indirectly 9 | . . . . . . . . . . . . . . . . . . . . 7 . . . . . . 2 . . . Trap Hack Attempts . | . . . . . . . . . . . . . . . . . . . . . . . . . . . . . . . Triggered . | . . . . . . . . . . . . . . . . . . . . . . . . . . . . . . . Disarmed . | . . . . . . . . . . . . . . . . . . . . . . . . . . . . . . . Reprogrammed . | . . . . . . . . . . . . . . . . . . . . . . . . . . . . . . . Reused . | . . . . . . . . . . . . . . . . . . . . . . . . . . . . . . . Traps Extracted . | . . . . . . . . . . . . . . . . . . . . . . . . . . . . . . . Installed 2 | . . 1 . . . . . 1 . . . . . . . . . . . . . . . . . . . . . . Triggered . | . . . . . . . . . . . . . . . . . . . . . . . . . . . . . . . Machines | -11 -10 -10 -8 -6 -6 -6 -6 -6 -6 -5 -5 -5 -5 -5 -5 -5 -4 -4 -4 -4 -4 -4 -4 -3 -3 -3 -2 -2 -2 -1 ---------- Run | Yrd Mat Sub Scr Fac Was Fac Low Low Dat Pro Fac Was Fac Upp Upp Zhi Pro Fac Was Fac Upp Upp War Pro Res Tes Res Qua Frg Acc Machines Disabled 65 | . . 1 . 5 . 7 . . . . 7 . 8 1 . . . 3 . 4 . . 2 . 2 8 3 9 . 5 Max in Single Turn 4 | . . 1 . 4 . 1 . . . . 1 . 1 . . . . 1 . 1 . . 1 . 1 1 1 1 . 1 Garrison Access 2 | . . . . . . 1 . . . . 1 . . . . . . . . . . . . . . . . . . . Machines Repaired . | . . . . . . . . . . . . . . . . . . . . . . . . . . . . . . . Machines Dismantled 1 | . . . . . . . . . . . . . . . . . . . . . . . 1 . . . . . . . Machines Sabotaged . | . . . . . . . . . . . . . . . . . . . . . . . . . . . . . . . Overloaded Fab Kills . | . . . . . . . . . . . . . . . . . . . . . . . . . . . . . . . Hacking | -11 -10 -10 -8 -6 -6 -6 -6 -6 -6 -5 -5 -5 -5 -5 -5 -5 -4 -4 -4 -4 -4 -4 -4 -3 -3 -3 -2 -2 -2 -1 --------- Run | Yrd Mat Sub Scr Fac Was Fac Low Low Dat Pro Fac Was Fac Upp Upp Zhi Pro Fac Was Fac Upp Upp War Pro Res Tes Res Qua Frg Acc Machines Accessed 132 | . 5 1 2 13 . 7 1 1 3 . 8 . 14 . 2 5 . 15 . 15 . 2 2 . 3 8 9 8 7 1 Terminals 58 | . 4 . . 7 . 2 . . . . 4 . 5 . 1 . . 7 . 5 . 1 . . 1 5 5 5 6 . Fabricators 7 | . . . . . . . . . . . . . 2 . . . . 1 . 2 . . . . . 1 . . . 1 Repair Stations 5 | . . . . . . . . . . . . . 1 . . . . . . . . . . . . 1 1 2 . . Recycling Units 30 | . 1 . . 4 . 4 . . . . 3 . 5 . . . . 5 . 6 . . . . 2 . . . . . Scanalyzers 9 | . . . . 1 . . . . . . . . 1 . . . . 2 . 1 . . . . . 1 1 1 1 . Garrison Access 6 | . . . . 1 . 1 . . . . 1 . . . . . . . . 1 . . . . . . 2 . . . Total Hacks 288 | . 14 1 6 26 . 11 1 1 21 . 16 . 34 . 5 18 . 26 . 33 . 6 5 . 4 15 18 14 11 2 Successful 159 | . 9 1 6 12 . 4 1 1 21 . 5 . 15 . 5 18 . 16 . 14 . 6 5 . 3 3 6 6 1 1 Failed 127 | . 5 . . 13 . 7 . . . . 11 . 19 . . . . 9 . 19 . . . . 1 12 12 8 10 1 Catastrophic 46 | . . . . 4 . 2 . . . . 2 . 6 . . . . 6 . 6 . . . . . 7 6 3 3 1 Database Lockouts 2 | . . . . 1 . . . . . . . . . . . . . 1 . . . . . . . . . . . . Manual 126 | . 12 . . 14 . 10 . . . . 11 . 20 . . . . 18 . 18 . . . . 2 3 9 5 4 . Terminals 126 | . 13 . . 14 . 3 . . . . 10 . 11 . 4 . . 16 . 8 . 5 . . 2 11 11 9 9 . Fabricators 18 | . . . . . . . . . . . . . 6 . . . . 1 . 8 . . . . . 1 . . . 2 Repair Stations 10 | . . . . . . . . . . . . . 5 . . . . . . . . . . . . 1 2 2 . . Recycling Units 49 | . 1 . . 7 . 7 . . . . 5 . 9 . . . . 6 . 12 . . . . 2 . . . . . Scanalyzers 21 | . . . . 4 . . . . . . . . 3 . . . . 3 . 2 . . . . . 2 2 3 2 . Garrison Access 9 | . . . . 1 . 1 . . . . 1 . . . . . . . . 3 . . . . . . 3 . . . Terminal Hacks 87 | . 6 1 6 3 . 1 1 1 21 . 2 . . . 5 18 . 4 . 2 . 6 5 . 1 1 2 1 . . Record 25 | . 1 . 6 . . . . . 2 . . . . . 4 6 . . . . . 5 . . . . 1 . . . Part Schematic 16 | . . . . . . . . . 12 . . . . . . 4 . . . . . . . . . . . . . . Robot Schematic 4 | . . . . . . . . . 4 . . . . . . . . . . . . . . . . . . . . . Robot Analysis 5 | . 1 . . . . . . . . . . . . . . 4 . . . . . . . . . . . . . . Prototype ID Bank 12 | . . . . 1 . . . . 3 . . . . . . 4 . . . . . . 4 . . . . . . . Open Door 5 | . . . . . . . 1 1 . . . . . . 1 . . . . . . 1 1 . . . . . . . Branch Access Points 4 | . 1 . . . . 1 . . . . . . . . . . . . . 1 . . . . 1 . . . . . Terminal Index 1 | . . . . . . . . . . . . . . . . . . . . 1 . . . . . . . . . . Alert Level 2 | . . . . . . . . . . . . . . . . . . 1 . . . . . . . . 1 . . . Locate Traps 9 | . 2 . . 1 . . . . . . 2 . . . . . . 2 . . . . . . . 1 . 1 . . Registered Components 2 | . . . . 1 . . . . . . . . . . . . . 1 . . . . . . . . . . . . Zone Layout 1 | . 1 . . . . . . . . . . . . . . . . . . . . . . . . . . . . . Proto ID Catalog 1 | . . 1 . . . . . . . . . . . . . . . . . . . . . . . . . . . . Fabricator Hacks 9 | . . . . . . . . . . . . . 3 . . . . . . 5 . . . . . . . . . 1 Load Schematic 6 | . . . . . . . . . . . . . 2 . . . . . . 3 . . . . . . . . . 1 Build 3 | . . . . . . . . . . . . . 1 . . . . . . 2 . . . . . . . . . . Repair Station Hacks 2 | . . . . . . . . . . . . . 2 . . . . . . . . . . . . . . . . . Scan Component 1 | . . . . . . . . . . . . . 1 . . . . . . . . . . . . . . . . . Repair 1 | . . . . . . . . . . . . . 1 . . . . . . . . . . . . . . . . . Recycling Unit Hacks . | . . . . . . . . . . . . . . . . . . . . . . . . . . . . . . . Scanalyzer 11 | . . . . 2 . . . . . . . . 2 . . . . 2 . 1 . . . . . . 1 3 . . Insert Component 2 | . . . . . . . . . . . . . . . . . . . . . . . . . . . . 2 . . Retrieve Study 9 | . . . . 2 . . . . . . . . 2 . . . . 2 . 1 . . . . . . 1 1 . . Garrison Access Hacks 1 | . . . . . . . . . . . 1 . . . . . . . . . . . . . . . . . . . Seal Access 1 | . . . . . . . . . . . 1 . . . . . . . . . . . . . . . . . . . Unauthorized Hacks 49 | . 3 . . 7 . 3 . . . . 2 . 8 . . . . 10 . 6 . . . . 2 2 3 2 1 . Terminals 20 | . 2 . . 3 . . . . . . . . 3 . . . . 4 . . . . . . . 2 3 2 1 . Track 16 | . 1 . . 2 . . . . . . . . 3 . . . . 3 . . . . . . . 1 3 2 1 . Botnet 4 | . 1 . . 1 . . . . . . . . . . . . . 1 . . . . . . . 1 . . . . Fabricators 3 | . . . . . . . . . . . . . 1 . . . . 1 . 1 . . . . . . . . . . Prioritize 1 | . . . . . . . . . . . . . . . . . . . . 1 . . . . . . . . . . Recompile 2 | . . . . . . . . . . . . . 1 . . . . 1 . . . . . . . . . . . . Repair Stations . | . . . . . . . . . . . . . . . . . . . . . . . . . . . . . . . Recycling Units 26 | . 1 . . 4 . 3 . . . . 2 . 4 . . . . 5 . 5 . . . . 2 . . . . . Tunnel 1 | . 1 . . . . . . . . . . . . . . . . . . . . . . . . . . . . . Fedlink 25 | . . . . 4 . 3 . . . . 2 . 4 . . . . 5 . 5 . . . . 2 . . . . . Scanalyzers . | . . . . . . . . . . . . . . . . . . . . . . . . . . . . . . . Garrison Access . | . . . . . . . . . . . . . . . . . . . . . . . . . . . . . . . Data Cores Recovered 3 | . . . . 2 . 1 . . . . . . . . . . . . . . . . . . . . . . . . Used 1 | . . . . 1 . . . . . . . . . . . . . . . . . . . . . . . . . . Hacking Detections 88 | . 4 . . 10 . 4 . . . . 5 . 10 . 1 . . 9 . 11 . . . . 1 8 9 8 7 1 Full Trace Events 5 | . . . . . . . . . . . 1 . 2 . . . . . . 1 . . . . . . 1 . . . Feedback Events 1 | . . . . . . . . . . . . . 1 . . . . . . . . . . . . . . . . . Corruption 1 | . . . . . . . . . . . . . 1 . . . . . . . . . . . . . . . . . Feedback Blocked . | . . . . . . . . . . . . . . . . . . . . . . . . . . . . . . . Robot Schematics Acquired 4 | . . . . . . . . . 4 . . . . . . . . . . . . . . . . . . . . . Robots Built 2 | . . . . . . . . . . . . . . . . . . . . 2 . . . . . . . . . . Authchips 1 | . . . . . . . . . . . . . . . . . . . . 1 . . . . . . . . . . Time 76 | . . . . . . . . . . . . . . . . . . . . 76 . . . . . . . . . . Total Robot Build Rating 10 | . . . . . . . . . . . . . . . . . . . . 10 . . . . . . . . . . Part Schematics Acquired 16 | . . . . . . . . . 12 . . . . . . 4 . . . . . . . . . . . . . . Parts Built 2 | . . . . . . . . . . . . . 1 . . . . . . 1 . . . . . . . . . . Authchips 2 | . . . . . . . . . . . . . 1 . . . . . . 1 . . . . . . . . . . Time 130 | . . . . . . . . . . . . . 84 . . . . . . 46 . . . . . . . . . . Total Part Build Rating 13 | . . . . . . . . . . . . . 6 . . . . . . 7 . . . . . . . . . . Part Studies Acquired 9 | . . . . 2 . . . . . . . . 2 . . . . 2 . 1 . . . . . . 1 1 . . Parts Repaired 1 | . . . . . . . . . . . . . 1 . . . . . . . . . . . . . . . . . Time 89 | . . . . . . . . . . . . . 89 . . . . . . . . . . . . . . . . . Parts Recycled . | . . . . . . . . . . . . . . . . . . . . . . . . . . . . . . . Recycled Matter . | . . . . . . . . . . . . . . . . . . . . . . . . . . . . . . . Retrieved Matter . | . . . . . . . . . . . . . . . . . . . . . . . . . . . . . . . Retrieved Components . | . . . . . . . . . . . . . . . . . . . . . . . . . . . . . . . Parts Scanalyzed . | . . . . . . . . . . . . . . . . . . . . . . . . . . . . . . . Part Schematics Acquired . | . . . . . . . . . . . . . . . . . . . . . . . . . . . . . . . Parts Damaged . | . . . . . . . . . . . . . . . . . . . . . . . . . . . . . . . Bothacking | -11 -10 -10 -8 -6 -6 -6 -6 -6 -6 -5 -5 -5 -5 -5 -5 -5 -4 -4 -4 -4 -4 -4 -4 -3 -3 -3 -2 -2 -2 -1 ------------ Run | Yrd Mat Sub Scr Fac Was Fac Low Low Dat Pro Fac Was Fac Upp Upp Zhi Pro Fac Was Fac Upp Upp War Pro Res Tes Res Qua Frg Acc Used RIF Installer . | . . . . . . . . . . . . . . . . . . . . . . . . . . . . . . . Robots Hacked 16 | . . . 2 3 . . . . . . 1 . . . . . . . . . . . . . . 7 . 3 . . Non-combat 5 | . . . 1 3 . . . . . . 1 . . . . . . . . . . . . . . . . . . . Combat 2 | . . . 1 . . . . . . . . . . . . . . . . . . . . . . 1 . . . . Robot Hacks Applied 8 | . . . 2 3 . . . . . . 2 . . . . . . . . . . . . . . 1 . . . . parse_system 4 | . . . 2 1 . . . . . . . . . . . . . . . . . . . . . 1 . . . . find_chute 4 | . . . . 2 . . . . . . 2 . . . . . . . . . . . . . . . . . . . Manual 10 | . . . . . . . . . . . . . . . . . . . . . . . . . . 7 . 3 . . Relay Couplers Released 5 | . . . . . . 1 . . . . . . . . . . . . . . . . . . . . . 4 . . Machine Destruction 1 | . . . . . . 1 . . . . . . . . . . . . . . . . . . . . . . . . Programmers 4 | . . . . . . . . . . . . . . . . . . . . . . . . . . . . 4 . . Fabnet Peak Effective % . | . . . . . . . . . . . . . . . . . . . . . . . . . . . . . . . Robots Rewired . | . . . . . . . . . . . . . . . . . . . . . . . . . . . . . . . Allies Hacked 1 | . . . . . . 1 . . . . . . . . . . . . . . . . . . . . . . . . Hacks Repelled . | . . . . . . . . . . . . . . . . . . . . . . . . . . . . . . . Allies | -11 -10 -10 -8 -6 -6 -6 -6 -6 -6 -5 -5 -5 -5 -5 -5 -5 -4 -4 -4 -4 -4 -4 -4 -3 -3 -3 -2 -2 -2 -1 -------- Run | Yrd Mat Sub Scr Fac Was Fac Low Low Dat Pro Fac Was Fac Upp Upp Zhi Pro Fac Was Fac Upp Upp War Pro Res Tes Res Qua Frg Acc Total Allies 47 | . . . . . 23 . . . . 1 . . . 1 . . . . 20 2 . . . . . . . . . . Largest Group 20 | . . . . . 18 14 4 3 3 4 4 . . 1 . . . . 20 19 . . . . . . . . . . Highest-Rated Group 746 | . . . . . 696 596 165 118 116 211 211 . . 138 . . . . 746 706 . . . . . . . . . . Highest-Rated Ally 138 | . . . . . 50 50 47 47 47 96 96 . . 138 . . . . 46 46 . . . . . . . . . . Initial UFD Resources 129 | . . . . 23 41 41 47 47 47 50 50 64 64 72 72 72 76 76 96 96 106 106 106 109 109 123 127 127 127 129 Total Orders 54 | . . . . . . . . . . . . . . . . . 10 14 . 14 5 2 2 . . . 7 . . . STAY 4 | . . . . . . . . . . . . . . . . . 2 . . 2 . . . . . . . . . . FOLLOW 3 | . . . . . . . . . . . . . . . . . 2 . . 1 . . . . . . . . . . EXPLORE 8 | . . . . . . . . . . . . . . . . . 2 . . 1 . . 1 . . . 4 . . . RETURN 39 | . . . . . . . . . . . . . . . . . 4 14 . 10 5 2 1 . . . 3 . . . Ally Attacks 750 | . . . . . 114 158 12 10 . 15 41 . . 2 . . 19 95 15 237 24 8 . . . . . . . . Total Damage 20464 | . . . . . 5433 3728 323 228 . 348 1609 . . 772 . . 274 1725 304 5129 417 174 . . . . . . . . Kills 111 | . . . . . 11 33 2 . . 1 15 . . 1 . . 3 8 1 33 2 1 . . . . . . . . Allies Corrupted 3 | . . . . . . . . . . . . . . . . . . . . 3 . . . . . . . . . . Allies Melted 1 | . . . . . . . . . . . . . . . . . . . . . . . 1 . . . . . . . Intel | -11 -10 -10 -8 -6 -6 -6 -6 -6 -6 -5 -5 -5 -5 -5 -5 -5 -4 -4 -4 -4 -4 -4 -4 -3 -3 -3 -2 -2 -2 -1 ------- Run | Yrd Mat Sub Scr Fac Was Fac Low Low Dat Pro Fac Was Fac Upp Upp Zhi Pro Fac Was Fac Upp Upp War Pro Res Tes Res Qua Frg Acc Active Infowar (turns) 30553 | 20 836 1695 2053 1920 158 363 751 258 194 658 835 604 487 1926 1463 379 369 2009 434 1864 762 1145 1526 1007 741 1432 1748 1280 652 984 Optics 4675 | . . 32 . . . 25 751 . . . . . . . . . . . . . . . . . . . 951 1280 652 984 Sensors 16749 | . . . . 1167 158 . . . . . . . 186 1926 1015 . . 1498 434 1707 668 924 1526 976 566 1125 1548 1158 . 167 Terrain 16954 | 20 836 214 1804 231 . . . . . . 834 . 311 1704 1462 378 369 1466 9 1414 665 1051 765 926 542 872 677 . . 404 Seismic 8615 | . . 1449 249 1165 . 363 494 258 194 658 580 604 193 . 385 375 . 271 . 9 . . 621 81 157 371 . . . 138 Jamming 5234 | . . . . 172 . . . . . . . . . . . . . 187 . 204 94 219 . . 619 1163 1744 832 . . Robot Analysis Total 5 | . 1 . . . . . . . . . . . . . . 4 . . . . . . . . . . . . . . Derelict Logs Recovered 13 | . . . 5 . . . 2 1 . 1 . . . 2 . . . . . . . 2 . . . . . . . . Drone Launches 61 | . . . . . . . . . . . . . . . . 2 4 23 . 18 6 2 1 . . . 5 . . . Drone Recoveries 57 | . . . . . . . . . . . . . . . . . 6 23 . 16 5 2 1 . . . 4 . . . Exploration | -11 -10 -10 -8 -6 -6 -6 -6 -6 -6 -5 -5 -5 -5 -5 -5 -5 -4 -4 -4 -4 -4 -4 -4 -3 -3 -3 -2 -2 -2 -1 ------------- Run | Yrd Mat Sub Scr Fac Was Fac Low Low Dat Pro Fac Was Fac Upp Upp Zhi Pro Fac Was Fac Upp Upp War Pro Res Tes Res Qua Frg Acc Turns Passed 35861 | 113 836 1913 2053 2289 1019 929 865 820 194 658 850 745 2386 1935 1482 471 431 2049 434 1985 843 1183 1526 1015 741 1432 1748 1280 652 984 Spaces Moved 20644 | 67 723 908 1125 1099 401 517 522 444 92 368 414 503 1264 770 592 191 242 1272 219 1337 574 904 980 749 490 881 1019 832 456 689 Core 138 | 3 . . . . . . . . . . . . . . . . . . . . . . . . . . . . . 135 Treads 2974 | . . 242 335 614 401 517 190 103 92 . . 13 4 48 . 98 242 75 . . . . . . . . . . . . Legs 10083 | . . . . . . . . . . . . . . . . . . 1197 219 1337 574 904 980 749 490 881 1019 832 456 445 Wheels 7340 | 64 723 666 790 485 . . 332 341 . 368 414 490 1260 722 592 93 . . . . . . . . . . . . . . Hover . | . . . . . . . . . . . . . . . . . . . . . . . . . . . . . . . Flight 109 | . . . . . . . . . . . . . . . . . . . . . . . . . . . . . . 109 Fastest Speed 37 | 50 100 130 119 85 160 160 145 145 200 160 120 110 102 155 230 166 166 120 120 120 120 120 115 115 116 116 110 108 105 37 Average Speed 141 | 97 106 190 179 135 160 160 151 175 203 164 173 131 133 236 240 190 166 124 122 122 120 120 120 115 116 116 117 118 113 94 Slowest Speed 330 | 100 130 320 320 240 160 160 213 240 240 175 175 240 330 260 260 246 166 166 190 191 120 190 190 115 116 116 182 182 177 185 Overloaded Moves . | . . . . . . . . . . . . . . . . . . . . . . . . . . . . . . . Propulsion Burnouts . | . . . . . . . . . . . . . . . . . . . . . . . . . . . . . . . Robots Hopped 3 | . . . . . . . . . . . . . . . . . . . . . . . 1 . . . . . . 2 Potential Cave-ins 15 | . . . . 2 . . . . . . . . . . . . . . . 4 . . 3 . . 2 2 . . 2 Cave-ins Triggered 1 | . . . . 1 . . . . . . . . . . . . . . . . . . . . . . . . . . Teleports 3 | . . . . . . . . . . . . . . . . . . . . . . . . . . 1 . . 2 . Exploration Rate (%) 56 | 3 81 46 81 37 83 21 75 56 69 45 15 94 39 82 64 60 58 38 82 41 70 91 97 74 11 80 33 79 19 27 Regions Visited 30 Branch Regions 17 Pre-discovered Areas 11 | . 1 . . 1 . . 1 . 1 1 . . . 1 1 3 . . . . . 1 . . . . . . . . Known Exits Taken 17 | . . . . . . 1 1 . . . . . 1 1 1 1 1 . . 1 1 1 1 1 1 1 1 1 1 . Unknown Exits Taken 7 | 1 1 1 1 . . . . 1 1 1 . . . . . . . . . . . . . . . . . . . . Scrap Searched 34 | . . 1 4 . . . 2 10 . 2 . . . 2 2 . 2 . . . 1 4 . 4 . . . . . . Spaces Dug 286 | . . 1 . 34 . 8 . . . 9 10 . 19 4 5 . . 48 . 35 6 6 3 1 3 17 33 25 11 8 Terrain Destroyed 1714 | . . 1 . 66 . 12 2 2 . 9 57 8 116 140 54 . 149 67 . 76 116 85 229 147 26 99 90 62 45 56 Melee 29 | . . . . 14 . 5 . . . 8 . . . . . . . 2 . . . . . . . . . . . . Projectile 564 | . . 1 . 40 . 7 2 2 . 1 12 8 83 9 12 . . 65 . 51 18 7 7 38 17 31 59 43 26 25 AOE 1120 | . . . . 12 . . . . . . 45 . 33 131 42 . 149 . . 25 98 78 222 109 9 68 31 19 19 30 Terrain Rammed 1 | . . . . . . . . . . . . . . . . . . . . . . . . . . . . . . 1 Walls Destroyed 1 | . . . . . . . . . . . . . . . . . . . . . . . . . . . . . . 1 Machines Disabled . | . . . . . . . . . . . . . . . . . . . . . . . . . . . . . . . Actions | -11 -10 -10 -8 -6 -6 -6 -6 -6 -6 -5 -5 -5 -5 -5 -5 -5 -4 -4 -4 -4 -4 -4 -4 -3 -3 -3 -2 -2 -2 -1 --------- Run | Yrd Mat Sub Scr Fac Was Fac Low Low Dat Pro Fac Was Fac Upp Upp Zhi Pro Fac Was Fac Upp Upp War Pro Res Tes Res Qua Frg Acc Total 25399 | 90 754 1017 1162 1676 767 589 574 471 102 410 512 568 1697 851 635 268 266 1601 383 1572 666 970 1272 843 601 1147 1454 1025 534 922 Wait 2031 | . . 24 . 325 314 24 21 . 2 15 7 15 156 19 9 2 11 142 138 100 12 17 197 38 50 95 166 64 10 58 Move 20611 | 66 722 907 1124 1099 400 516 521 443 91 367 414 502 1263 769 591 190 241 1272 218 1336 573 903 977 748 489 880 1018 831 455 685 Hop 3 | . . . . . . . . . . . . . . . . . . . . . . . 1 . . . . . . 2 Pick Up 282 | 5 6 18 6 27 18 5 4 9 . 6 11 8 30 8 5 8 . 18 5 7 3 5 13 2 7 8 16 9 2 13 Fast Attach 122 | 7 . . 1 14 4 2 . . 3 . 1 4 15 2 1 5 1 1 4 9 2 2 1 1 1 2 11 5 7 16 Attach 169 | . . 6 2 13 2 1 3 2 . 1 9 6 19 4 7 9 2 10 1 7 4 2 7 3 3 6 12 4 6 18 Detach 75 | . . . 1 2 3 2 1 1 . 1 4 3 10 . 2 7 4 1 1 2 6 1 . 2 1 2 3 2 2 11 Swap 412 | 1 2 23 7 47 8 10 11 3 . 3 13 2 29 11 . 2 . 34 4 27 18 11 13 15 16 37 34 15 7 9 Drop 286 | . 2 1 19 17 11 9 3 4 6 6 13 6 28 7 5 13 . 22 9 9 2 8 13 2 3 6 21 15 7 19 Fire 1241 | 11 21 37 . 81 4 14 10 8 . 2 38 13 146 29 15 32 7 92 2 75 46 21 42 32 29 106 154 76 33 65 Melee 72 | . . . 2 48 3 5 . . . 8 2 . . . . . . 4 . . . . . . . . . . . . Ram 7 | . 1 . . 1 . . . . . . . . 1 2 . . . . . . . . . . . . . . . 2 Kick 49 | . . . . . . . . . . . . . . . . . . . . . . . . . 2 5 16 4 5 17 Crush 3 | . . . . 2 . 1 . . . . . . . . . . . . . . . . . . . . . . . . Escape Stasis 15 | . . . . . . . . . . . . . . . . . . 5 . . . . . . . . 3 . . 7 Rewire 10 | . . . . . . . . . . . . 9 . . . . . . 1 . . . . . . . . . . . Trap 2 | . . 1 . . . . . 1 . . . . . . . . . . . . . . . . . . . . . . Miscellaneous 9 | . . . . . . . . . . 1 . . . . . . . . . . . . 8 . . . . . . . Route ------- -11/Scrapyard -10/Materials (discovered 4 exits: [*Mat x2] / *Min / *Sub) -10/Subcaves -8/Scraptown (discovered 2 exits: *Fac x2) -6/Factory (discovered 4 exits: *Fac x2 / *Low x2) -6/Waste -6/Factory (discovered 3 exits: *Fac / *Low x2) -6/Lower Caves -6/Lower Caves -6/Data Miner -5/Proximity Caves -5/Factory -5/Waste -5/Factory (discovered 3 exits: *Fac x2 / *Upp) -5/Upper Caves (discovered 2 exits: *Upp / *Fac) -5/Upper Caves (discovered 2 exits: Fac / *Zhi) -5/Zhirov -4/Proximity Caves -4/Factory (discovered 4 exits: *Res x3 / *Upp) -4/Waste -4/Factory (discovered 5 exits: *Res x3 / *Upp x2) -4/Upper Caves -4/Upper Caves (discovered 2 exits: Res / *War) -4/Warlord -3/Proximity Caves -3/Research (discovered 3 exits: Arm / *Tes x2) -3/Testing -2/Research (discovered 2 exits: *Acc / *Qua) -2/Quarantine (discovered 3 exits: *Acc / *Sec / *Frg) -2/Protoforge -1/Access History --------- Turn | Location | Event 14 | -11/Scrapyard | Discovered new exit (range 15) 114 | -11/Scrapyard | Entered Materials 115 | -10/Materials | Met a group of wandering Federalists 177 | -10/Materials | Discovered new exit (range 9) 233 | -10/Materials | Lost 3 allies 273 | -10/Materials | Identified exit to Mines 306 | -10/Materials | Build established: Mutant 353 | -10/Materials | Discovered new exit (range 13) 409 | -10/Materials | Discovered new exit (range 6) 784 | -10/Materials | Discovered new exit (range 14) 950 | -10/Materials | Entered Subcaves 951 | -10/Subcaves | Continued accompanying wandering Federalists (2) 1200 | -10/Subcaves | Ambushed by Subdwellers from Twisted Machinery 1200 | -10/Subcaves | Wandering Federalist uncovered a shortcut to Scraptown 1280 | -10/Subcaves | A swath of the cavern ceiling suddenly collapsed 1618 | -10/Subcaves | Core integrity fell below 50% 1934 | -10/Subcaves | Core integrity fell below 20% 1963 | -10/Subcaves | Lost 4 parts (1p1n1u1w) 2392 | -10/Subcaves | Build established: Scavenger-Mutant 2451 | -10/Subcaves | Visited 4L-MR0's lab 2479 | -10/Subcaves | Found Prototype Device 2490 | -10/Subcaves | Found Maxwheels 2863 | -10/Subcaves | Entered Scraptown 3205 | -8/Scraptown | Visited UFD Registry 3205 | -8/Scraptown | Registered with UFD as "Protonmod" 3238 | -8/Scraptown | Visited The Evicted 3271 | -8/Scraptown | Visited Comm Corps 3283 | -8/Scraptown | Visited Cave Peace 3328 | -8/Scraptown | Scanned Subdweller tech in exchange for log data 3330 | -8/Scraptown | Learned Factory non-interactive machine intel 3332 | -8/Scraptown | Learned location of 1 exit from Factory 3333 | -8/Scraptown | Learned 8 Factory zone layouts 3334 | -8/Scraptown | Learned location of 1 exit from Research 3335 | -8/Scraptown | Learned Research terminal intel 3348 | -8/Scraptown | Discovered new exit (range 11) 3652 | -8/Scraptown | Visited Assassins FH 3715 | -8/Scraptown | Build established: Mutant 3750 | -8/Scraptown | Visited Derelict Rescue Squad 3812 | -8/Scraptown | Visited A0-MCA Data Center 3825 | -8/Scraptown | Given a D+ rating by A0-MCA 3917 | -8/Scraptown | Visited Abandonware Association 3935 | -8/Scraptown | Learned abandonware demo "OVRCLOCK.EXE" 3943 | -8/Scraptown | Learned abandonware demo "REVENGE.EXE" 3943 | -8/Scraptown | Learned abandonware demo "POISON.EXE" 3985 | -8/Scraptown | Visited Research Penetration Think Tank 4029 | -8/Scraptown | Visited Scrapoid Pod Storage 4055 | -8/Scraptown | Visited LU-1G1's Boring Crew 4121 | -8/Scraptown | Visited Chapter 10 4488 | -8/Scraptown | Found Scrapoid Pod 4648 | -8/Scraptown | Found A0-MCA's Component Scanner 4691 | -8/Scraptown | Found DRS Beacon 4822 | -8/Scraptown | Met Optimus 4822 | -8/Scraptown | Accepted into 0bPrime 4913 | -8/Scraptown | Discovered new exit (range 3) 4916 | -8/Scraptown | Entered Factory 4916 | -6/Factory | Evolved 8 slots: Power x1, Propulsion x2, Utility x4, Weapon x1 4917 | -6/Factory | Identified exit to Lower Caves 4919 | -6/Factory | Loaded intel: 191 non-interactive machine locations 5105 | -6/Factory | Attached Maxwheels, gained temporary slots: Weapon x2 5160 | -6/Factory | Discovered exit to Lower Caves (range 3) 5320 | -6/Factory | Loaded intel: 8 recycling unit locations 5394 | -6/Factory | Learned location of Protoforge (-2) 5662 | -6/Factory | Central database locked down 5667 | -6/Factory | Build established: Gunner 5711 | -6/Factory | Discovered new exit (range 6) 5974 | -6/Factory | Crushed by falling debris 5986 | -6/Factory | Garrison activated, responded to threat 6013 | -6/Factory | Discovered new exit (range 12) 6020 | -6/Factory | Lost 3 parts (1u2w) 6050 | -6/Factory | Core integrity fell below 50% 6097 | -6/Factory | Lost 9 parts (3p1n3u2w) 6855 | -6/Factory | Core integrity fell below 20% 7202 | -6/Factory | Build established: Mutant 7205 | -6/Factory | Manually triggered Chute Trap 7205 | -6/Factory | Sucked down chute 7205 | -6/Factory | Entered Waste 7253 | -6/Waste | Spotted C-40 Crusher 7331 | -6/Waste | Warlord forces began an assault 7341 | -6/Waste | Spotted C-40 Crusher 7342 | -6/Waste | Allies destroyed C-40 Crusher 7350 | -6/Waste | Spotted C-40 Crusher 7354 | -6/Waste | Allies destroyed C-40 Crusher 7355 | -6/Waste | Spotted C-40 Crusher 7358 | -6/Waste | Spotted C-40 Crusher 7360 | -6/Waste | Allies destroyed C-40 Crusher 7361 | -6/Waste | Allies destroyed C-40 Crusher 7371 | -6/Waste | Allies destroyed C-40 Crusher 7399 | -6/Waste | Lost 4 allies 7424 | -6/Waste | Spotted C-40 Crusher 7425 | -6/Waste | Allies destroyed C-40 Crusher 7455 | -6/Waste | Lost 3 allies 7813 | -6/Waste | Scrapoid Pod released 06W05-D (x5) 8159 | -6/Waste | Discovered new exit (range 16) 8188 | -6/Waste | Identified exit to Factory 8224 | -6/Waste | Entered Factory 8224 | -6/Factory | Accompanied by 14 allies 8374 | -6/Factory | Build established: Scavenger-Mutant 8446 | -6/Factory | Loaded intel: 8 recycling unit locations 8629 | -6/Factory | Found Scrap Suit 8921 | -6/Factory | Discovered new exit (range 11) 9033 | -6/Factory | Garrison activated, responded to threat 9153 | -6/Factory | Entered Lower Caves 9153 | -6/Lower Caves | Accompanied by 4 allies 9179 | -6/Lower Caves | Identified exit to Lower Caves 9203 | -6/Lower Caves | Build established: Scavenger-Gunner 9351 | -6/Lower Caves | Encountered a Warlord checkpoint 9898 | -6/Lower Caves | Spotted B-75 Beast 9909 | -6/Lower Caves | Destroyed B-75 Beast 10018 | -6/Lower Caves | Entered another Lower Caves area 10018 | -6/Lower Caves | Accompanied by 3 allies 10260 | -6/Lower Caves | Spotted B-75 Beast 10278 | -6/Lower Caves | Destroyed B-75 Beast 10328 | -6/Lower Caves | Discovered new exit (range 3) 10627 | -6/Lower Caves | Build established: Gunner 10838 | -6/Lower Caves | Entered Data Miner 10838 | -6/Data Miner | Accompanied by 3 allies 10840 | -6/Data Miner | Discovered new exit (range 6) 10878 | -6/Data Miner | Met Data Miner 10921 | -6/Data Miner | Learned location of Section 7 (-2) 10921 | -6/Data Miner | Acquired the access code to Warlord's prototype stash 10947 | -6/Data Miner | Received God Mode back door access code from Data Miner 11032 | -6/Data Miner | Entered Proximity Caves 11032 | -5/Proximity Caves | Accompanied by 3 allies 11047 | -5/Proximity Caves | Activated DRS Beacon 11244 | -5/Proximity Caves | Escorted by Enhanced Grunt 11552 | -5/Proximity Caves | Learned location of Armory (-3) 11609 | -5/Proximity Caves | Spotted B-75 Beast 11644 | -5/Proximity Caves | Discovered new exit (range 3) 11661 | -5/Proximity Caves | System corruption reached 10% 11690 | -5/Proximity Caves | Entered Factory 11690 | -5/Factory | Accompanied by 4 allies 11690 | -5/Factory | Evolved 2 slots: Utility x2 11736 | -5/Factory | Loaded intel: 8 recycling unit locations 12069 | -5/Factory | Discovered new exit (range 16) 12119 | -5/Factory | Identified exit to Upper Caves 12214 | -5/Factory | Found Smartbomb Launcher 12234 | -5/Factory | Build established: Skirmisher 12293 | -5/Factory | Incoming investigation squad redirected 12419 | -5/Factory | Cargo convoy interrupted 12540 | -5/Factory | Sucked down chute 12540 | -5/Factory | Entered Waste 12540 | -5/Waste | The area was eerily silent 12559 | -5/Waste | Lost 8 parts (1p3n2u2w) 12584 | -5/Waste | Found Broken Vortex Chain Reactor 12687 | -5/Waste | Found Damper Plating 12870 | -5/Waste | A Compactor rumbled back to life 12871 | -5/Waste | Spotted C-40 Crusher 12879 | -5/Waste | Discovered new exit (range 11) 12924 | -5/Waste | Crushed by Compactor (0 parts destroyed, 1 dropped) 13039 | -5/Waste | Destroyed C-40 Crusher 13248 | -5/Waste | Build established: Scavenger-Scrapper 13285 | -5/Waste | Entered Factory 13457 | -5/Factory | Loaded intel: 8 recycling unit locations 13572 | -5/Factory | Core integrity fell below 50% 13853 | -5/Factory | Garrison activated, responded to threat 13995 | -5/Factory | Incoming investigation squad redirected 14007 | -5/Factory | Lost 4 parts (2p1n1u) 14210 | -5/Factory | Repaired Hvy. Proton Missile Launcher? 14260 | -5/Factory | Incoming investigation squad redirected 14271 | -5/Factory | System corruption reached 10% 14401 | -5/Factory | Discovered new exit (range 20) 14536 | -5/Factory | Fabricated Combat Drone Bay (x1) 14721 | -5/Factory | Garrison activated, responded to threat 14894 | -5/Factory | Build established: Scavenger-Gunner 15158 | -5/Factory | Incoming investigation squad redirected 15418 | -5/Factory | Discovered new exit (range 14) 15512 | -5/Factory | Identified exit to Factory 15621 | -5/Factory | Discovered exit to Upper Caves (range 16) 15671 | -5/Factory | Entered Upper Caves 15681 | -5/Upper Caves | Learned 4 Factory zone layouts 15692 | -5/Upper Caves | 99-TNT showed up to help 15694 | -5/Upper Caves | 99-TNT revealed a hidden path 15697 | -5/Upper Caves | Core integrity fell below 20% 16216 | -5/Upper Caves | Build established: Skirmisher 17507 | -5/Upper Caves | Discovered new exit (range 16) 17594 | -5/Upper Caves | Identified exit to Upper Caves 17606 | -5/Upper Caves | Entered another Upper Caves area 17926 | -5/Upper Caves | Discovered exit to Factory (range 12) 18933 | -5/Upper Caves | Build established: Gunner 18964 | -5/Upper Caves | Learned location of Extension (-5) 19076 | -5/Upper Caves | Discovered new exit (range 7) 19086 | -5/Upper Caves | Identified exit to Zhirov 19088 | -5/Upper Caves | Entered Zhirov 19091 | -5/Zhirov | Discovered new exit (range 3) 19132 | -5/Zhirov | Met Zhirov 19175 | -5/Zhirov | Learned location of Quarantine (-2) 19175 | -5/Zhirov | Learned location of Testing (-3) 19175 | -5/Zhirov | Learned location of Command (-1) 19194 | -5/Zhirov | Zhirov requested help retrieving the SGEMP Prototype 19266 | -5/Zhirov | Found Alien Artifact 19266 | -5/Zhirov | Identified Integrated Dissipator 19266 | -5/Zhirov | Installed Integrated Dissipator, increased core heat dissipation (+20) 19296 | -5/Zhirov | Found Alien Artifact 19357 | -5/Zhirov | Attached CPS modules to B-86 Titan 19399 | -5/Zhirov | Build established: Mutant 19553 | -5/Zhirov | Identified exit to Proximity Caves 19559 | -5/Zhirov | Entered Proximity Caves 19559 | -4/Proximity Caves | Accompanied by 2 allies 19833 | -4/Proximity Caves | Discovered exit to Factory (range 22) 19990 | -4/Proximity Caves | Entered Factory 19990 | -4/Factory | Evolved 2 slots: Utility x2 20184 | -4/Factory | Discovered new exit (range 9) 20235 | -4/Factory | Identified exit to Research 20402 | -4/Factory | Loaded intel: 8 recycling unit locations 20766 | -4/Factory | Build established: Gunner 20775 | -4/Factory | Garrison activated, responded to threat 20929 | -4/Factory | Central database locked down 21015 | -4/Factory | Discovered new exit (range 15) 21033 | -4/Factory | Identified exit to Upper Caves 21111 | -4/Factory | Build established: Skirmisher 21297 | -4/Factory | Discovered exit to Research (range 16) 21829 | -4/Factory | Discovered exit to Research (range 24) 22039 | -4/Factory | Sucked down chute 22039 | -4/Factory | Entered Waste 22040 | -4/Waste | Joined by Warlord forces that had cleared the area 22172 | -4/Waste | Discovered new exit (range 16) 22179 | -4/Waste | A Compactor rumbled back to life 22180 | -4/Waste | Spotted C-40 Crusher 22183 | -4/Waste | Allies destroyed C-40 Crusher 22366 | -4/Waste | Build established: Gunner 22446 | -4/Waste | Identified exit to Factory 22473 | -4/Waste | Entered Factory 22473 | -4/Factory | Accompanied by 19 allies 22515 | -4/Factory | Incoming investigation squad redirected 22598 | -4/Factory | Discovered exit to Research (range 11) 22647 | -4/Factory | Lost 5 allies 22835 | -4/Factory | Fabricated H-66 Slayer? 22845 | -4/Factory | P-70 Sage assimilated allied PE-0AW(g) 22912 | -4/Factory | Fabricated Assault Drone Bay (x1) 22953 | -4/Factory | Discovered exit to Research (range 15) 22962 | -4/Factory | Loaded intel: 8 recycling unit locations 23295 | -4/Factory | Incoming investigation squad redirected 23362 | -4/Factory | Build established: Skirmisher 23504 | -4/Factory | Discovered exit to Research (range 16) 23723 | -4/Factory | First assault squad dispatched 23747 | -4/Factory | Incoming assault squad redirected 24458 | -4/Factory | Entered Upper Caves 24910 | -4/Upper Caves | Found Imp. Powered Armor 25277 | -4/Upper Caves | Discovered new exit (range 14) 25293 | -4/Upper Caves | Identified exit to Upper Caves 25301 | -4/Upper Caves | Entered another Upper Caves area 25393 | -4/Upper Caves | Learned Research terminal intel 25468 | -4/Upper Caves | Attracted the attention of an 0b10 checkpoint 25561 | -4/Upper Caves | Discovered new exit (range 10) 25562 | -4/Upper Caves | Encountered a Warlord checkpoint 25564 | -4/Upper Caves | Learned Research stockpile data 25573 | -4/Upper Caves | Identified exit to Warlord 25669 | -4/Upper Caves | Learned location of 2 exits from Lower Caves 26049 | -4/Upper Caves | Discovered exit to Research (range 24) 26484 | -4/Upper Caves | Entered Warlord 26519 | -4/Warlord | Discovered new exit (range 8) 26645 | -4/Warlord | Found Vortex Chain Reactor 26736 | -4/Warlord | Found RU-N14's Throwing Claymores v3 26917 | -4/Warlord | Warlord's base attacked by MAIN.C 26968 | -4/Warlord | Found Vortex Rail 26970 | -4/Warlord | Found Vortex Rail 26976 | -4/Warlord | Found Vortex Catalyst Activator 27106 | -4/Warlord | P-70 Sage assimilated allied HN-QJ5(Y) 27267 | -4/Warlord | Warlord forces counterattacked 27287 | -4/Warlord | Spotted B-90 Cyclops 27357 | -4/Warlord | Spotted B-86 Titan 27361 | -4/Warlord | Destroyed Executioner 27413 | -4/Warlord | Lost 18 allies 27438 | -4/Warlord | Spotted Executioner 27502 | -4/Warlord | Lost 11 allies 27592 | -4/Warlord | Warlord base infiltrated, sounded retreat 27608 | -4/Warlord | Spotted Executioner 27666 | -4/Warlord | Build established: Gunner 27705 | -4/Warlord | Rebuked by Warlord 27758 | -4/Warlord | Spotted B-86 Titan 27805 | -4/Warlord | Spotted Executioner 27810 | -4/Warlord | Spotted Striker 27834 | -4/Warlord | Destroyed Executioner 27856 | -4/Warlord | Spotted Striker 27863 | -4/Warlord | Spotted Striker 27864 | -4/Warlord | Spotted Executioner 27866 | -4/Warlord | Destroyed Executioner 27875 | -4/Warlord | Spotted Striker 27888 | -4/Warlord | Lost 3 allies 27943 | -4/Warlord | Destroyed 13 combat bots 27953 | -4/Warlord | Lost 4 allies 27965 | -4/Warlord | Identified exit to Proximity Caves 28010 | -4/Warlord | Entered Proximity Caves 28375 | -3/Proximity Caves | Build established: Scavenger-Skirmisher 28565 | -3/Proximity Caves | Discovered exit to Research (range 24) 28681 | -3/Proximity Caves | Attracted the attention of an 0b10 checkpoint 28764 | -3/Proximity Caves | System corruption reached 10% 29025 | -3/Proximity Caves | Entered Research 29025 | -3/Research | Evolved 2 slots: Propulsion x1, Utility x1 29026 | -3/Research | Identified exit to Armory 29028 | -3/Research | Discovered new exit (range 24) 29028 | -3/Research | Loaded intel: 20 terminal locations 29043 | -3/Research | Loaded intel: 5 recycling unit locations 29043 | -3/Research | Watched by a mysterious "MATRIX" hacker 29351 | -3/Research | Identified exit to Testing 29660 | -3/Research | System corruption reached 10% 29766 | -3/Research | Entered Testing 29974 | -3/Testing | Found Exp. Terrain Scan Processor 30033 | -3/Testing | Build established: Skirmisher 30037 | -3/Testing | Found Potential Cannon 30511 | -3/Testing | Identified Transdimensional Reconstructor 30511 | -3/Testing | Warped through subspace 30825 | -3/Testing | Discovered new exit (range 23) 31009 | -3/Testing | Found Exp. Targeting Computer 31197 | -3/Testing | Identified exit to Research 31198 | -3/Testing | Entered Research 31198 | -2/Research | Evolved 2 slots: Power x1, Utility x1 31199 | -2/Research | Loaded intel: 23 terminal locations 31260 | -2/Research | Found Quantum Capacitor 31546 | -2/Research | Discovered new exit (range 22) 31920 | -2/Research | Identified exit to Access 32205 | -2/Research | Spotted B-90 Cyclops 32371 | -2/Research | Found Thermal Barrier 32455 | -2/Research | System corruption reached 10% 32817 | -2/Research | Found Imp. Powered Armor 32846 | -2/Research | Found Prototype Device 32846 | -2/Research | Identified Exp. EM Shield 32883 | -2/Research | Discovered new exit (range 17) 32940 | -2/Research | Identified exit to Quarantine 32946 | -2/Research | Entered Quarantine 32952 | -2/Quarantine | Spotted Alpha 7 33055 | -2/Quarantine | Found Alien Artifact 33195 | -2/Quarantine | Found Transdimensional Reconstructor 33197 | -2/Quarantine | Found Alien Artifact 33207 | -2/Quarantine | Found Alien Artifact 33251 | -2/Quarantine | Found Unknown Launcher 33251 | -2/Quarantine | Identified Fusion Bomb Launcher 33353 | -2/Quarantine | Build established: Scavenger-Skirmisher 33713 | -2/Quarantine | Found Alien Reactor 33713 | -2/Quarantine | Identified Matter Drive 33890 | -2/Quarantine | Found Alien Artifact 33934 | -2/Quarantine | Found Alien Artifact 33934 | -2/Quarantine | Identified Phase Armor 33965 | -2/Quarantine | Found Alien Artifact 33971 | -2/Quarantine | Discovered exit to Access (range 15) 33996 | -2/Quarantine | Identified Phase Redirector 33996 | -2/Quarantine | Identified Hpw. Transdimensional Reconstructor 34142 | -2/Quarantine | Spotted Fortress 34196 | -2/Quarantine | First assault squad dispatched 34212 | -2/Quarantine | Discovered new exit (range 10) 34212 | -2/Quarantine | Discovered new exit (range 10) 34220 | -2/Quarantine | Identified exit to Section 7 34224 | -2/Quarantine | Identified exit to Protoforge 34226 | -2/Quarantine | Entered Protoforge 34289 | -2/Protoforge | Superfortress began startup sequence 34449 | -2/Protoforge | Spotted Hotshot 34526 | -2/Protoforge | Spotted Overlord 34577 | -2/Protoforge | Spotted Hotshot 34584 | -2/Protoforge | Spotted Hotshot 34594 | -2/Protoforge | Destroyed Hotshot 34604 | -2/Protoforge | Destroyed Hotshot 34610 | -2/Protoforge | Build established: Scavenger-Tank 34646 | -2/Protoforge | Warped through subspace 34656 | -2/Protoforge | Discovered exit to Access (range 14) 34681 | -2/Protoforge | Identified Dimensional Node Initializer 34681 | -2/Protoforge | Initialized slip node 34696 | -2/Protoforge | Spotted Hotshot 34728 | -2/Protoforge | Spotted Immortal 34728 | -2/Protoforge | Spotted Immortal 34751 | -2/Protoforge | Spotted Immortal 34783 | -2/Protoforge | System corruption reached 30% 34860 | -2/Protoforge | Core integrity fell below 50% 34877 | -2/Protoforge | Warped through subspace to slip node 34878 | -2/Protoforge | Entered Access 34878 | -1/Access | Evolved 2 slots: Utility x2 34907 | -1/Access | Lost 7 parts (2p2n2u1w) 35299 | -1/Access | Found Spectral Analyzer 35628 | -1/Access | First assault squad dispatched 35648 | -1/Access | Incoming assault squad redirected 35654 | -1/Access | Incoming assault squad redirected 35656 | -1/Access | Garrison activated, responded to threat 35699 | -1/Access | Lost 4 parts (2n1u1w) 35720 | -1/Access | Core integrity fell below 50% 35724 | -1/Access | Spotted B-99 Colossus 35752 | -1/Access | Spotted B-99 Colossus 35779 | -1/Access | Spotted B-99 Colossus 35784 | -1/Access | Lost 10 parts (3p4n3u) 35788 | -1/Access | Identified Terrabomb 35788 | -1/Access | Used Terrabomb 35799 | -1/Access | Core integrity fell below 20% 35862 | -1/Access | Destroyed by H-88 Terminator with KE Penetrator Last Messages --------------- 35810_ Slammed into K-01 Serf. 35819_ K-01 Serf destroyed. 35821_ Acquired 15 matter. 35834_ Acquired Field Propulsion Array. 35836_ Slug penetrates Wall. 35841_ Adv. Cryofiber Web destroyed. 35848_ Penetrated by Slug. 35848_ Slug penetrates Wall. 35848_ Acquired 1 matter. 35849_ W-44 Eye sends out distress signal. 35850_ Penetrated by Slug. 35850_ Slug penetrates Wall. 35857_ U-05 Engineer destroyed. 35858_ Field Propulsion Array destroyed. 35858_ Slug penetrates K-01 Serf. 35858_ K-01 Serf destroyed. 35859_ H-88 Terminator IFF system glitched. 35859_ K-01 Serf collects debris. 35859_ P-80 Master resets H-88 Terminator, system corruption cleaned. 35861_ Penetrated by Slug. Map ----- +----------------------------------------------------+ | ????????????????????## # #?????# | | ????????????????????## # =!#?????######## | | ?????????????????????# # *!%############## | | ?????????????????????# # =|# # | | ?????????????????????# # + # | | ?????????????????????# # k # # | | ?????????????????????# # # ] # | | ?????????????????????# # # # | | ?????????????????????# # # # | | ????????????########## # # # | | ????????????# # # # # | | ????????????# # +g ; # | | ????????????# # # h# # | | ????????????# # # ############## | | ????????????# ########%% #????????????? | | ????????????# % % # h #????????????? | | ????????????# " !# = #????????????? | | ????????????# """ |# % #????????????? | | ????????????# """| + #????????????? | | ????????????# "% # #????????????? | | ????????????# |# #????????????? | | ????????????# # #????????????? | | ????????????# " # w########????????????? | | ????????????# """ # #???????????????????? | | ????????????# """ # #???????????????????? | | ????????????# " # @ #???????????????????? | | ????????????# # #???????????????????? | | ????????????# # #???????????????????? | | ????????????######## # #???????????????????? | | ???????????????????######+#######????????????????? | | ???#+#+############# % #????????????????? | | ???# + % #????????????????? | | ???# ######### ! ""#????????????????? | | ???# ????????# ""#????????????????? | | ???+ #???????# " ""#????????????????? | | ???# #???????# %% "" T#????????????????? | | ???# #??##???# """""" ""#????????????????? | | #### ######### """""" ""#????????????????? | | % / "" ""#????????????????? | | ##### "" #????????????????? | | #???# #????????????????? | | #???# = #????????????????? | | ### ##+####################????????????????? | | ??# ## #???????????????????? | | ??# ^ ## #???????????????????? | | ??# ## #???????????????????? | | ??# ## #???????????????????? | | ??# ## #???????????????????? | | ??# ## #???????????????????? | | ??# ## #???????????????????? | +----------------------------------------------------+ Best States ------------- Heat Dissipation 107 Coolant Potential 100 Energy Generation 63 Energy Capacity 1700 Matter Stores 300 Matter Capacity 300 Sight Range 24 Robot Scan Range 18 Terrain Scan Range 24 Terrain Scan Density 1010 Jamming Range 16 Base Temperature (-) 200 Armor Coverage 1000 Resistance: KI 30 Resistance: TH 50 Core Shielding 20 Utility Shielding 90 Weapon Cycling 20 Phase Shifting 5 Evasion (%) 70 Targeting Accuracy 12 Core Analysis 6 Recoil Reduction 6 Kinecelleration 40 Salvage Targeting 2 Offensive Hacking 10 Authchip Count 2 Item Schematics ----------------- Combat Drone Bay | -6/Data Miner | Free Lgt. Regenerative Plating | -6/Data Miner | Free Enh. Armored Leg | -6/Data Miner | Free Prc. Energy Filter | -6/Data Miner | Free Hvy. Proton Cannon | -6/Data Miner | Free Centrium Wheel | -6/Data Miner | Free Imp. Force Field | -6/Data Miner | Free Dispersion Rifle | -6/Data Miner | Free Shield Leg | -6/Data Miner | Free Antimatter Reactor | -6/Data Miner | Free Adv. Recalibrator | -6/Data Miner | Free Nova Cannon | -6/Data Miner | Free Assault Drone Bay | -5/Zhirov | Free Exp. Heat Sink | -5/Zhirov | Free Exp. Optical Array | -5/Zhirov | Free Imp. Arc Thrower | -5/Zhirov | Free Robot Schematics ------------------ L-41 Fighter | -6/Data Miner | Free A-15 Conveyor | -6/Data Miner | Free H-66 Slayer | -6/Data Miner | Free A-27 Freighter | -6/Data Miner | Free Fabricated ------------ Combat Drone Bay | x1 | -5/Factory | Authchip H-66 Slayer | x2 | -4/Factory | Authchip Assault Drone Bay | x1 | -4/Factory | Authchip Repaired ---------- Hvy. Proton Missile Launcher | 1% | -5/Factory Studied --------- Hvy. Machine Gun | -6/Factory | Hacked Med. Treads | -6/Factory | Hacked KE Penetrator | -5/Factory | Hacked Antimatter Reactor | -5/Factory | Hacked Shield Leg | -4/Factory | Hacked Hyp. Mass Driver | -4/Factory | Hacked Lrn. Proton Cannon | -4/Factory | Hacked Enh. Nova Cannon | -2/Research | Hacked Centrium Leg | -2/Quarantine | Hacked Alien Tech Used ----------------- Integrated Dissipator Transdimensional Reconstructor Matter Drive Phase Armor Phase Redirector High-powered Transdimensional Reconstructor Dimensional Node Initializer Terrabomb Achievements -------------- Low-level Research Ponder That! Protector UFD MVP Wiki Contributor Challenges ------------ None Game ------ Seed SwarmMeleeStorm Manual? 0 Play Time 07:20:38 Cumulative 362.1 hours Start 2026.08.22 @ 15:11:42 End 2026.08.25 @ 16:13:39 Sessions 8 Manual Loads 0 Difficulty Rogue Special Mode None Game No. 123 Rogue 122 Adventurer 1 Explorer 0 Win Type - Total 13 Types 11/1/1/0/0/0/0/0/0/0 Lore% 77 Gallery% 73 Achievement% 59 Wizard Run 0 Options --------- Layout 0 ASCII 1 Keyboard 1 Movement Vi Keybinds 0 Fullscreen 1 Font 36/Terminus++ Map View 76x50 Zoom Use 0% Tactical HUD 1 Map Filters NONE Filters NONE Steam SD RUN: a2e8dc71-d527-42fb-bf08-69a68948d6e3